Cogmind - Beta 17 @@@ ROGUE MODE // 2026.08.20 @ 05:05:37 Player: 4R-ZE3 Result: Destroyed by P-80 Master with Gamma Rifle Performance ------------- Evolutions (9) 4500 Regions Visited (37) 7400 Robots Destroyed (580) 2900 Value Destroyed (30501) 30501 Prototype IDs (56) 1120 Alien Tech Used (0) 0 Bonus (14523) 14523 TOTAL SCORE: 60944 Bonus ------- Triggered High Security 500 High Alert Combat Kills 5952 Follower Combat Kills 1213 Entered Garrisons 1800 Used RIF Installer 4500 Aligned with FarCom 300 Met Data Miner 300 Friendly Fire -42 Cogmind --------- Core Integrity 0/1600 Matter 300/300 Energy 62/100 System Corruption 50% Temperature Cool (0) Movement Core (50) Location -1/Access Parts ------- > --- POWER (3) -------- (None) > --- PROPULSION (8) --- (None) > --- UTILITY (11) ----- (None) > --- WEAPON (3) ------- (None) > --- INVENTORY (5) ---- Biometal Heavy Treads Advanced Trap Scanner Advanced Remote Datajack Peak State ------------ > --- POWER ------------ Heavy Antimatter Reactor Quantum Reactor Light Quantum Reactor > --- PROPULSION ------- Armored Heavy Treads Armored Heavy Treads Biometal Heavy Treads Biometal Heavy Treads > --- UTILITY ---------- Advanced Heat Sink Advanced Coolant Injector Huge Storage Unit Quantum Capacitor Experimental Transmission Jammer Layered Heavy Armor Plating Graphene Brace Advanced Thermal Shield Advanced Hardlight Generator > --- WEAPON ----------- Long-range Proton Cannon Compact HERF Cannon Enhanced Nova Cannon > --- INVENTORY -------- Particle Reactor Light Quantum Reactor Armored Heavy Treads Armored Heavy Treads Advanced Heavy Siege Treads Advanced Heat Sink Advanced Heat Sink Advanced Heat Sink Advanced Trap Scanner Quantum Capacitor Improved Focal Shield Advanced Point Defense System Gamma Rifle Gamma Rifle Heavy Proton Cannon HERF Cannon Enhanced Nova Cannon Enhanced Nova Cannon Micro-nuke Launcher Advanced Remote Datajack Field Lobotomy Kit [Rating: 206] Favorites ----------- Power Reinforced Quantum Reactor Engine Cooled Ion Engine Power Core Nuclear Core Reactor Reinforced Quantum Reactor Propulsion Heavy Treads Treads Heavy Treads Wheel Compact Wheel Utility Huge Storage Unit Device Advanced Heat Sink Storage Huge Storage Unit Processor Experimental Signal Interpreter Hackware Relay Coupler [NC] Protection Layered Heavy Armor Plating Weapon Heavy Particle Gun Energy Gun Heavy Particle Gun Energy Cannon Enhanced Nova Cannon Ballistic Gun Enhanced Autogun Launcher Missile Launcher Special Weapon Remote Datajack Slashing Weapon Axe Special Melee Weapon Improved Datajack Build | -11 -10 -10 -9 -9 -9 -8 -8 -8 -8 -7 -7 -7 -7 -7 -7 -6 -6 -6 -6 -6 -6 -6 -5 -5 -5 -5 -4 -4 -4 -4 -3 -3 -2 -2 -2 -2 -1 ------- Run | Yrd Mat Min Mat Min Exi Min Mat Gar Mat Fac Was Fac Low Low Dat Pro Fac Was Fac Gar Fac Gar Fac Gar Fac Gar Fac Gar Fac Gar Res Arm Res Gar Res Gar Acc Slots Evolved 18 | . . . 2 . . . 2 . . 2 . . . . . . 2 . . . . . 2 . . . 2 . . . 2 . 2 . . . 2 Power 2 | . . . . . . . . . . 1 . . . . . . . . . . . . . . . . 1 . . . . . . . . . . Propulsion 6 | . . . . . . . 2 . . . . . . . . . 2 . . . . . . . . . . . . . . . 2 . . . . Utility 9 | . . . 1 . . . . . . 1 . . . . . . . . . . . . 2 . . . 1 . . . 2 . . . . . 2 Weapon 1 | . . . 1 . . . . . . . . . . . . . . . . . . . . . . . . . . . . . . . . . . Parts Attached 301 | 8 6 2 29 1 1 . 22 10 9 8 11 10 3 1 . 3 4 8 4 . 2 . 4 9 10 5 5 5 1 13 19 11 19 . 14 11 33 Power 44 | 1 1 1 4 . . . 1 . 1 1 2 . . . . 1 1 3 . . . . 1 1 1 3 1 1 . 1 4 2 2 . 2 2 6 Engine 8 | 1 1 1 4 . . . . . 1 . . . . . . . . . . . . . . . . . . . . . . . . . . . . Core 5 | . . . . . . . 1 . . 1 . . . . . . . . . . . . 1 . 1 1 . . . . . . . . . . . Reactor 31 | . . . . . . . . . . . 2 . . . . 1 1 3 . . . . . 1 . 2 1 1 . 1 4 2 2 . 2 2 6 Propulsion 69 | 4 . . 10 . . . 10 2 6 2 4 . . . . . 2 1 . . . . . 3 . . 3 1 . 2 3 1 4 . 3 . 8 Treads 67 | 2 . . 10 . . . 10 2 6 2 4 . . . . . 2 1 . . . . . 3 . . 3 1 . 2 3 1 4 . 3 . 8 Leg . | . . . . . . . . . . . . . . . . . . . . . . . . . . . . . . . . . . . . . . Wheel 2 | 2 . . . . . . . . . . . . . . . . . . . . . . . . . . . . . . . . . . . . . Hover . | . . . . . . . . . . . . . . . . . . . . . . . . . . . . . . . . . . . . . . Flight . | . . . . . . . . . . . . . . . . . . . . . . . . . . . . . . . . . . . . . . Utility 108 | 1 2 . 4 1 1 . 6 3 . 1 3 5 2 1 . 1 1 4 4 . . . 1 4 8 . 1 3 1 10 8 4 8 . 5 6 9 Device 66 | . 1 . 3 1 . . 3 . . 1 1 2 1 1 . . 1 2 3 . . . . 2 6 . 1 1 1 8 4 2 7 . 4 4 6 Storage 5 | 1 1 . . . . . 1 1 . . . 1 . . . . . . . . . . . . . . . . . . . . . . . . . Processor 7 | . . . . . . . . . . . . 1 . . . . . 1 1 . . . 1 1 . . . . . . . . 1 . . 1 . Hackware 9 | . . . . . . . . 1 . . 1 . . . . . . 1 . . . . . . 1 . . 1 . . 2 1 . . . . 1 Protection 21 | . . . 1 . 1 . 2 1 . . 1 1 1 . . 1 . . . . . . . 1 1 . . 1 . 2 2 1 . . 1 1 2 Artifact . | . . . . . . . . . . . . . . . . . . . . . . . . . . . . . . . . . . . . . . Weapon 80 | 2 3 1 11 . . . 5 5 2 4 2 5 1 . . 1 . . . . 2 . 2 1 1 2 . . . . 4 4 5 . 4 3 10 Energy Gun 20 | 1 1 . 4 . . . 1 1 . 1 2 3 . . . . . . . . 1 . . 1 . . . . . . . . . . . 3 1 Energy Cannon 26 | . . . . . . . . . . . . 1 . . . . . . . . 1 . 1 . 1 . . . . . 3 4 5 . 4 . 6 Ballistic Gun 20 | 1 1 1 7 . . . 3 3 2 2 . . . . . . . . . . . . . . . . . . . . . . . . . . . Ballistic Cannon . | . . . . . . . . . . . . . . . . . . . . . . . . . . . . . . . . . . . . . . Launcher 7 | . 1 . . . . . . . . . . . 1 . . 1 . . . . . . 1 . . . . . . . . . . . . . 3 Special Weapon 4 | . . . . . . . . . . . . 1 . . . . . . . . . . . . . 2 . . . . 1 . . . . . . Impact Weapon . | . . . . . . . . . . . . . . . . . . . . . . . . . . . . . . . . . . . . . . Slashing Weapon 1 | . . . . . . . 1 . . . . . . . . . . . . . . . . . . . . . . . . . . . . . . Piercing Weapon . | . . . . . . . . . . . . . . . . . . . . . . . . . . . . . . . . . . . . . . Special Melee Weapon 2 | . . . . . . . . 1 . 1 . . . . . . . . . . . . . . . . . . . . . . . . . . . Unidentified Prototypes 19 | . . . 4 . . . 1 . . 1 . 2 . . . 1 . . . . 1 . 1 1 . . . . . . 1 . 1 . 1 4 . Corrupted Parts 1 | . . . . . . . . . . . . . . . . . . . . . . . . . . . . . . . . . . . . . 1 System Corruption 10 | . . . . . . . . . . . . . . . . . . . . . . . . . . . . . . . . . . . . . 10 Parts Lost 90 | . 3 2 7 . . . . 1 1 1 1 . . . . 1 5 . . . . . . 2 . . . . . 3 2 8 7 . 3 2 41 Power 13 | . 1 1 2 . . . . . . . 1 . . . . 1 1 . . . . . . . . . . . . . . 1 1 . . 1 3 Propulsion 17 | . 1 . 1 . . . . 1 . . . . . . . . 2 . . . . . . . . . . . . . . 1 2 . . . 9 Utility 37 | . . . 2 . . . . . . 1 . . . . . . 1 . . . . . . 1 . . . . . 3 1 5 3 . 3 1 16 Weapon 23 | . 1 1 2 . . . . . 1 . . . . . . . 1 . . . . . . 1 . . . . . . 1 1 1 . . . 13 Highest Loss Streak 25 | . 2 1 3 . . . . 1 1 1 1 . . . . 1 2 . . . . . . 2 . . . . . 2 1 7 4 . 1 1 25 To Critical Strikes 1 | . . . 1 . . . . . . . . . . . . . . . . . . . . . . . . . . . . . . . . . . Average Backups 20 | 2 8 14 14 15 14 15 14 24 24 24 22 21 22 22 22 21 20 18 21 20 21 21 20 21 21 22 21 22 21 22 22 23 23 23 22 22 18 Power 1 | . . . . 1 1 1 1 1 1 . . 2 2 2 2 1 . . 2 2 2 2 2 1 2 2 1 2 2 2 3 3 3 2 2 2 2 Propulsion 2 | 1 1 1 2 3 3 3 2 6 5 4 3 3 3 3 3 3 1 . 3 3 3 3 3 3 3 3 3 3 3 2 2 2 . 2 1 1 2 Utility 7 | . 1 3 2 2 1 1 1 7 9 11 10 10 10 10 10 10 11 9 9 7 8 7 6 6 7 8 7 8 8 9 8 7 10 9 9 7 5 Weapon 6 | . 4 10 8 8 8 8 7 7 5 6 5 4 5 5 5 5 5 5 5 5 6 7 7 7 7 7 7 7 6 6 7 8 8 8 6 8 7 Tool/Special . | . . . . . . . . . . . . . . . . . . . . . . . . . . . . . . . . . . . . . . Unused Backups 59 | . . 3 7 . . 1 3 1 1 2 8 6 . . . . . 1 . . 2 . . 2 . . . . . . 6 5 1 . 5 . 5 Power 11 | . . . . . . 1 1 . . . 1 . . . . . . 1 . . . . . . . . . . . . 3 . 1 . 1 . 2 Propulsion 9 | . . . 1 . . . . . . 1 3 . . . . . . . . . . . . 1 . . . . . . . 2 . . . . 1 Utility 16 | . . . . . . . 1 1 . . 4 2 . . . . . . . . 1 . . 1 . . . . . . 2 1 . . 2 . 1 Weapon 22 | . . 3 6 . . . 1 . 1 1 . 3 . . . . . . . . 1 . . . . . . . . . 1 2 . . 2 . 1 Tool/Special 1 | . . . . . . . . . . . . 1 . . . . . . . . . . . . . . . . . . . . . . . . . Average Slot Usage (%) 84 | . 97 98 98 100 100 100 99 99 100 98 87 83 84 84 84 83 79 79 80 78 80 79 81 80 76 75 77 78 78 78 80 79 78 82 78 77 73 Engine 1 | . 13 13 10 11 11 11 . . 2 7 2 . . . . . . . . . . . . . . . . . . . . . . . . . . Core 1 | . . . . . . . 8 9 6 5 . . . . . . . . . . . . . 5 7 2 . . . . . . . . . . . Reactor 9 | . . . . . . . . . . . 9 15 15 15 15 15 12 13 13 13 13 13 10 4 3 8 15 15 15 15 14 13 12 13 13 12 11 Treads 18 | . 20 . 20 22 22 22 35 35 36 30 20 15 15 15 15 15 19 20 20 20 20 20 17 17 17 17 14 15 15 15 14 14 15 17 17 17 15 Device 17 | . 12 14 14 11 11 11 14 12 9 8 6 12 23 23 23 17 13 11 13 18 19 16 23 17 11 11 14 15 15 16 23 18 24 26 23 25 27 Storage 6 | . 14 14 11 11 11 11 9 9 9 7 7 7 7 7 7 7 6 6 6 6 6 6 5 5 5 5 5 5 5 5 4 4 4 4 4 4 3 Hackware 2 | . . . . . . . . 4 9 7 7 2 . . . . . 3 . . . . . . 2 5 5 5 5 5 2 9 4 4 3 . 1 Protection 3 | . . . 7 11 11 11 3 . . 5 6 3 . . . 5 5 2 1 . . 2 4 8 5 5 5 5 5 4 5 3 . . 2 4 2 Energy Gun 7 | . 13 11 5 . . . . 6 11 6 17 22 21 22 23 21 19 18 20 18 20 19 16 16 11 . . . . . . . . . . 4 1 Energy Cannon 5 | . . . . . . . . . . . . . . . . . . . . . . . . . 4 16 15 15 14 14 13 13 12 12 13 8 9 Ballistic Gun 5 | . 13 15 27 33 33 33 26 17 15 15 2 . . . . . . . . . . . . . . . . . . . . . . . . . . Peak Build Rating 206 | 6 9 13 25 25 26 26 29 31 35 48 71 77 78 76 76 82 91 88 90 89 91 91 101 108 112 118 126 125 122 123 146 151 178 180 189 193 206 Average Rating 99 | 4 7 11 21 25 25 26 27 29 33 42 60 74 75 75 75 77 85 82 88 86 88 89 96 97 108 112 123 120 120 119 136 147 162 178 182 186 188 On Entrance 82 | . 6 9 12 25 25 26 26 28 30 34 48 71 74 75 76 75 79 83 87 87 88 91 89 96 108 106 114 121 121 122 121 145 98 178 180 189 184 Avg Prop Armor Cover (%) 12 | . 12 . . . . . . . . . . . . . . . . . . . . . . . . . . . . . . . . . . . . Naked Turns 92 | . . . . . . . . . . . . . . . . . . . . . . . . . . . . . . . . . . . . . 92 Heaviest Build 243 | 12 30 31 42 41 41 41 100 106 103 116 131 133 149 133 149 144 156 149 146 134 140 140 143 155 149 186 206 206 202 202 216 218 204 191 219 201 243 Greatest Support 300 | 40 40 26 40 40 40 40 80 80 91 93 140 140 140 140 140 140 210 210 210 210 210 210 210 225 225 225 225 210 210 210 220 220 275 275 300 300 300 Greatest Overweight (x) 4 | . 1 1 1 1 1 1 1 1 1 1 1 . 1 . 1 1 . . . . . . . . . . . . . . 1 2 1 . . . 4 Average Overweight (x) . | . . 1 . 1 1 1 . 1 1 1 . . . . . . . . . . . . . . . . . . . . . . . . . . . Largest Inventory Capacity 25 | 8 15 15 15 15 15 15 25 25 25 25 25 25 25 25 25 25 25 25 25 25 25 25 25 25 25 25 25 25 25 25 25 25 25 25 25 25 25 Average Capacity 23 | 6 12 15 15 15 15 15 15 25 25 25 25 25 25 25 25 25 25 25 25 25 25 25 25 25 25 25 25 25 25 25 25 25 25 25 25 25 24 Most Carried 25 | 4 14 15 15 15 15 15 20 25 25 25 25 25 25 25 25 25 25 25 25 25 25 25 25 25 25 25 25 25 25 25 25 25 25 25 25 25 25 Average Carried 22 | 2 8 14 14 15 14 15 14 24 24 24 23 24 25 24 25 24 22 19 24 23 24 24 23 24 24 25 24 24 24 24 24 24 23 25 24 24 22 Final Capacity 25 | 8 15 15 15 15 15 15 25 25 25 25 25 25 25 25 25 25 25 25 25 25 25 25 25 25 25 25 25 25 25 25 25 25 25 25 25 25 5 Final Carried 25 | 4 12 14 15 15 15 15 20 24 25 24 25 25 25 25 25 24 18 24 24 25 25 25 25 25 25 25 25 25 25 25 25 25 25 25 25 24 4 Class Distribution -------------------- 47% | Scavenger-Tank 13% | Scavenger-Skirmisher 9% | Tank 7% | Skirmisher 6% | Botlord-Tank 5% | Bothacker-Tank 5% | Mutant Dominant Class ---------------- Mutant | -10/Materials Mutant | -10/Mines Tank | -9/Materials Tank | -9/Mines Tank | -9/Exiles Skirmisher | -8/Mines Scavenger-Skirmisher | -8/Materials Scavenger-Skirmisher | -8/Garrison Skirmisher | -8/Materials Skirmisher | -7/Factory Scavenger-Tank | -7/Waste Scavenger-Tank | -7/Factory Scavenger-Tank | -7/Lower Caves Scavenger-Tank | -7/Lower Caves Scavenger-Tank | -7/Data Miner Scavenger-Tank | -6/Proximity Caves Scavenger-Tank | -6/Factory Scavenger-Tank | -6/Waste Scavenger-Skirmisher | -6/Factory Scavenger-Tank | -6/Garrison Scavenger-Tank | -6/Factory Scavenger-Tank | -6/Garrison Scavenger-Tank | -5/Factory Scavenger-Tank | -5/Garrison Scavenger-Tank | -5/Factory Scavenger-Tank | -5/Garrison Scavenger-Skirmisher | -4/Factory Bothacker-Tank | -4/Garrison Bothacker-Skirmisher | -4/Factory Botlord-Tank | -4/Garrison Botlord-Tank | -3/Research Bothacker-Tank | -3/Armory Scavenger-Tank | -2/Research Scavenger-Tank | -2/Garrison Scavenger-Tank | -2/Research Scavenger-Tank | -2/Garrison Scavenger-Tank | -1/Access Resources | -11 -10 -10 -9 -9 -9 -8 -8 -8 -8 -7 -7 -7 -7 -7 -7 -6 -6 -6 -6 -6 -6 -6 -5 -5 -5 -5 -4 -4 -4 -4 -3 -3 -2 -2 -2 -2 -1 ----------- Run | Yrd Mat Min Mat Min Exi Min Mat Gar Mat Fac Was Fac Low Low Dat Pro Fac Was Fac Gar Fac Gar Fac Gar Fac Gar Fac Gar Fac Gar Res Arm Res Gar Res Gar Acc Matter Collected 10987 | 230 210 197 1030 140 . 206 808 546 493 461 255 416 190 125 . 144 145 267 118 131 142 131 98 150 320 169 40 190 184 260 399 376 375 254 350 267 1170 Remotely . | . . . . . . . . . . . . . . . . . . . . . . . . . . . . . . . . . . . . . . Salvage Created 33703 | . 565 247 1777 233 . 211 828 531 651 584 1556 919 478 158 . 343 702 1576 440 226 65 416 . 1201 1181 428 126 1155 319 1036 1624 1199 2185 296 1211 934 8302 Parts 1394 | . 29 26 115 14 . 17 48 34 34 33 32 57 11 9 . 6 24 23 23 3 4 14 . 37 26 13 2 33 13 34 62 72 122 9 49 34 332 Haulers Intercepted 7 | . . . 6 . . . . . 1 . . . . . . . . . . . . . . . . . . . . . . . . . . . . Recyclers Shooed 8 | . . . . . . . . . . . . . . . . . . . 1 . . . . . 1 . . . . . . . 1 . 1 . 4 Parts Field Recycled . | . . . . . . . . . . . . . . . . . . . . . . . . . . . . . . . . . . . . . . Retrieved Matter . | . . . . . . . . . . . . . . . . . . . . . . . . . . . . . . . . . . . . . . Parts Self-Destructed 24 | . . . . . . . . . . . . . 12 8 . 4 . . . . . . . . . . . . . . . . . . . . . Prevented 3 | . . . . . . . . . . . . . . 3 . . . . . . . . . . . . . . . . . . . . . . . Parts Restored . | . . . . . . . . . . . . . . . . . . . . . . . . . . . . . . . . . . . . . . Kills | -11 -10 -10 -9 -9 -9 -8 -8 -8 -8 -7 -7 -7 -7 -7 -7 -6 -6 -6 -6 -6 -6 -6 -5 -5 -5 -5 -4 -4 -4 -4 -3 -3 -2 -2 -2 -2 -1 ------- Run | Yrd Mat Min Mat Min Exi Min Mat Gar Mat Fac Was Fac Low Low Dat Pro Fac Was Fac Gar Fac Gar Fac Gar Fac Gar Fac Gar Fac Gar Res Arm Res Gar Res Gar Acc Combat Hostiles Destroyed 531 | . 17 12 38 6 . 9 16 20 11 11 6 20 12 7 . 7 13 6 10 4 1 11 . 9 23 7 2 17 5 14 25 19 25 3 18 11 116 Melee 2 | . . . . . . . . . . . . . . . . . . . . . . . . . . . . . . . . 2 . . . . . Guns 230 | . 14 12 38 6 . 9 16 20 11 11 6 19 6 1 . 5 10 6 8 3 1 9 . 6 12 . . . . . . . . . . . 1 Cannons 158 | . . . . . . . . . . . . . . . . . . . . . . . . . 5 6 1 15 4 11 21 13 21 1 15 4 41 AOE 52 | . 3 . . . . . . . . . . . 6 6 . 2 . . . . . . . . . . . . . . . . . . . . 35 Classes Destroyed 23 | . 2 . 6 1 . 1 1 3 1 1 1 . . . . . . . . . . 1 . 1 . . . . . 1 . . 1 . . . 2 Worker 12 | . . . 4 . . . . . . 1 . 1 . . . . . . 1 . . . . . . . . . . . . . . . . . 5 Builder 10 | . . . 2 . . . . . 1 2 . 1 . . . . . . . . . . . . . . . . . . . . 2 . . . 2 Tunneler 1 | . . . . . . . . . . . . . . . . . . . . . . . . . . . . . . . . . . . . . 1 Hauler 7 | . . . 6 . . . . . 1 . . . . . . . . . . . . . . . . . . . . . . . . . . . . Recycler 8 | . . . . 1 . . . . 1 1 . 1 . . . . . . . . . . . . . . . . . . . . 2 . . . 2 Mechanic 2 | . . . . . . . . . . . . . . . . . . . . . . . . . . . . . . . . . . . . . 2 Operator 2 | . . . 2 . . . . . . . . . . . . . . . . . . . . . . . . . . . . . . . . . . Watcher 7 | . . . . . . . 1 . 1 . . . . . . . . . . . . . . . 1 . . . . . . . . . . . 4 Swarmer 125 | . 6 9 16 4 . 7 1 13 3 4 . 8 . 4 . 3 1 . 5 . . 4 . . 8 . . . . . 4 . 4 . 3 . 18 Cutter 3 | . . . . . . . . . . . . . . . . . . . . . . . . 3 . . . . . . . . . . . . . Saboteur 7 | . . . . . . . . . . . . . . . . . . . . . . 2 . . . . . . . . . 4 . . . . 1 Grunt 176 | . 11 3 12 2 . . 6 2 1 4 . 2 11 2 . . 4 . 2 2 . 4 . 3 10 4 1 13 2 9 5 . 4 2 3 7 45 Brawler 8 | . . . 1 . . . . 1 . . . . . 1 . . . . . . . . . . . . . . . 1 . . . . . . 4 Duelist 14 | . . . . . . . . . 1 1 . . 1 . . . 1 . . 1 . . . . . . . . . . . 3 . . . . 6 Protector 6 | . . . . . . . . 1 . . . . . . . . . . . . . . . . . . . . . . . 1 . . . . 4 Sentry 56 | . . . 9 . . . 7 . 5 1 . 3 . . . 1 2 . 2 . 1 1 . 2 1 1 . . 1 1 3 3 5 . 1 . 6 Demolisher 4 | . . . . . . . . 1 . . . . . . . 3 . . . . . . . . . . . . . . . . . . . . . Specialist 5 | . . . . . . . . 1 . . . . . . . . . . . . . . . . . . . . . . . 1 1 . . . 2 Hunter 29 | . . . . . . 2 2 1 1 . . 1 . . . . 4 . . . . . . . . . . 4 . . 1 2 . 1 . . 10 Programmer 82 | . . . . . . . . . . 1 . 6 . . . . 1 . 1 1 . . . 1 4 2 1 . 2 2 12 5 9 . 11 4 19 Heavy 3 | . . . . . . . . . . . . . . . . . . . . . . . . . . . . . . . . . 2 . . . 1 Behemoth 1 | . . . . . . . . . . . . . . . . . . . . . . . . . . . . . . 1 . . . . . . . Compactor 12 | . . . . . . . . . . . 6 . . . . . . 6 . . . . . . . . . . . . . . . . . . . Decomposer 1 | . . . . . . . . . . . . . . . . 1 . . . . . . . . . . . . . . . . . . . . . Best Kill Streak 17 | . 3 5 8 3 . 4 4 4 3 8 1 4 4 7 . 3 3 2 6 3 1 4 . 3 5 3 1 7 2 4 4 3 4 2 6 4 17 Combat Bots Only 16 | . 3 5 8 3 . 4 4 4 3 7 1 4 4 7 . 3 3 2 6 3 1 4 . 3 5 3 1 7 2 4 4 3 4 2 6 4 16 Max Kills in Single Turn 6 | . 3 2 2 1 . 2 1 2 2 2 1 2 2 2 . 1 1 1 1 1 1 1 . 1 2 1 1 1 1 1 1 1 2 1 1 1 6 Gunslinging 1 | . 1 1 1 . . 1 . 1 . . . . . . . . . . . . . . . . 1 . . . . . . . . . . . . Exploded 5 | . 3 . . . . . . . . . . . 2 2 . 1 . . . . . . . . . . . . . . . . . . . . 5 Melee 1 | . . . . . . . . . . . . . . . . . . . . . . . . . . . . . . . . 1 . . . . . Uniques/NPCs Destroyed . | . . . . . . . . . . . . . . . . . . . . . . . . . . . . . . . . . . . . . . Combat | -11 -10 -10 -9 -9 -9 -8 -8 -8 -8 -7 -7 -7 -7 -7 -7 -6 -6 -6 -6 -6 -6 -6 -5 -5 -5 -5 -4 -4 -4 -4 -3 -3 -2 -2 -2 -2 -1 -------- Run | Yrd Mat Min Mat Min Exi Min Mat Gar Mat Fac Was Fac Low Low Dat Pro Fac Was Fac Gar Fac Gar Fac Gar Fac Gar Fac Gar Fac Gar Res Arm Res Gar Res Gar Acc Hostile Shots Fired 3275 | . 63 35 147 23 . 36 66 73 56 108 1 124 23 17 . 30 155 . 83 20 18 64 . 57 127 32 11 160 32 72 203 168 165 21 148 77 860 Missed 765 | . 15 9 36 6 . 10 26 16 25 32 . 44 5 6 . 4 44 . 30 6 5 15 . 10 24 8 3 38 11 14 49 26 33 3 18 10 184 Hits 2510 | . 48 26 111 17 . 26 40 57 31 76 1 80 18 11 . 26 111 . 53 14 13 49 . 47 103 24 8 122 21 58 154 142 132 18 130 67 676 Melee 45 | . . . . . . . . . . . 1 . . . . . 1 . . 2 . . . 9 . . . . . 2 . 9 . . . . 21 Projectile 2465 | . 48 26 111 17 . 26 40 57 31 76 . 80 18 11 . 26 110 . 53 12 13 49 . 38 103 24 8 122 21 56 154 133 132 18 130 67 655 AOE 24 | . . . . . . . . 2 . . . . . . . 17 1 . . . . . . 3 . . . . . . . . . . . . 1 Critical Strikes 108 | . . . 3 . . . 1 . . . . . 1 . . . 2 . 1 1 . 2 . 11 3 . . 9 2 5 6 4 10 2 9 2 34 Actively Blocked 43 | . . . . . . . . . . . . . . . . . . . . . . . . . . . . . . . . . . . 9 2 32 Part Disruptions 6 | . . . . . . . . . . . . . . . . . . . . . . . . . . . . . . . 1 3 1 . . . 1 Damage Taken 40848 | . 511 221 1193 157 . 253 594 671 451 910 60 1002 162 72 . 646 894 . 249 233 25 232 . 851 1603 401 117 1778 258 919 2634 2662 2268 241 2553 1489 14538 Core 3264 | . 107 32 245 22 . 21 65 126 60 42 . 86 27 10 . 44 23 . 16 31 . 14 . 41 49 29 17 39 28 . 193 107 114 . 76 . 1600 Absorbed by Shields 5955 | . . . 80 . . . 40 60 . . . 87 138 44 . 211 348 . 282 30 75 284 . 186 . . . . 88 26 288 536 1046 160 264 82 1600 Reduced by Siege Mode 3888 | . . . . . . . . . . . . 26 30 4 . 62 101 . 28 28 3 46 . 78 235 36 3 175 9 86 152 98 253 9 432 238 1756 Redirected to Shielding 67 | . . . . . . . . . . . . . . . . . . . . . . . . . . . . . . . 67 . . . . . . Ignored by Resistances 4715 | . . . . . . . . . . . . 17 . . . . 257 . . . . 35 . 38 320 76 36 590 87 271 534 290 617 49 206 . 1292 Regen/Repaired (Parts) 567 | . . . . . . . . . . . . 22 . . . . . . . . . . . . 284 133 . . 128 . . . . . . . . Core Remaining (%) 72 | 100 . 44 . . . 28 . . 54 . . . . . . 70 . . . . . 90 . . . 88 . . . 92 . 76 . . . 86 . Volleys Fired 1760 | . 39 19 96 11 . 17 46 44 34 26 58 58 24 7 . 29 44 96 25 14 3 35 1 62 66 22 8 48 26 32 116 50 86 16 57 35 410 Largest 3 | . 2 2 3 3 . 3 3 3 3 3 3 3 3 2 . 3 3 3 3 3 3 3 1 3 3 3 3 3 3 3 3 3 3 3 3 3 3 Hottest 360 | . 85 98 148 75 . 75 75 166 168 108 165 165 130 75 . 130 165 130 130 130 195 130 60 150 180 105 100 100 100 100 323 360 360 270 360 360 225 Shots Fired 3713 | . 75 32 280 33 . 51 138 120 100 76 174 142 48 9 . 78 112 230 64 37 9 81 1 158 154 51 20 138 54 84 234 113 176 22 103 79 437 Gun 2211 | . 73 32 280 33 . 51 138 120 100 76 174 141 38 4 . 75 111 223 64 37 9 81 1 158 111 . . . . . . . . . . 42 39 Cannon 1424 | . . . . . . . . . . . . . . . . . . . . . . . . . 40 50 20 137 52 82 231 109 176 12 103 36 376 Launcher 41 | . 2 . . . . . . . . . . . 10 5 . 3 . . . . . . . . . . . . . . . . . . . . 21 Special 37 | . . . . . . . . . . . . 1 . . . . 1 7 . . . . . . 3 1 . 1 2 2 3 4 . 10 . 1 1 Kinetic 716 | . 37 19 215 33 . 51 138 87 63 51 22 . . . . . . . . . . . . . . . . . . . . . . . . . . Thermal 2606 | . 36 13 65 . . . . 33 37 25 152 141 38 4 . 75 111 223 64 37 9 81 1 158 151 50 20 137 52 82 231 109 156 1 99 36 179 Explosive 36 | . 2 . . . . . . . . . . . 10 5 . 3 . . . . . . . . . . . . . . . . . . . . 16 Electromagnetic 318 | . . . . . . . . . . . . . . . . . . . . . . . . . . . . . . . . . 20 11 4 42 241 Robot Hit Streak 38 | . 6 11 17 6 . 5 18 20 23 7 20 21 8 8 . 14 17 38 12 16 3 16 . 26 32 21 23 25 7 34 21 15 26 10 16 20 18 Robot Miss Streak 6 | . 2 5 3 4 . 4 4 6 3 4 4 2 3 . . 4 2 3 4 1 1 2 . 3 3 1 3 5 4 1 2 3 3 2 3 2 6 Penetration Max 1 | . . . . . . . . . 1 1 . . . . . . . . . . . . . . . . . . . . . . . . . . . Secondary Targets 39 | . 1 3 7 2 . 3 1 5 1 3 . 1 1 . . . . 2 . 1 . 1 . 1 6 . . . . . . . . . . . . Max Gunslinging Chain 1 | . 1 1 1 1 . 1 1 1 1 1 . 1 1 . . . . 1 . 1 . 1 . 1 1 . . . . . . . . . . . . Capacitor 348 | . . . . . . . . . . . . . . . . . . . . . . . . . . . . . . . . . . . . . 348 Shots Hit Robots 2432 | . 47 20 187 18 . 28 93 73 70 47 139 92 32 5 . 52 82 197 39 28 5 51 . 111 111 34 14 99 25 64 118 61 106 16 51 49 268 Core Hits 1041 | . 31 12 70 8 . 13 35 30 24 24 28 41 24 11 . 20 32 30 19 9 3 19 . 45 36 12 1 42 10 30 41 25 41 5 19 19 232 Critical Kills 20 | . . . . . . . . . 2 . . . . . . . . . . . . . . . . 1 . 1 1 3 3 4 . . 3 1 1 Critical Parts Destroyed 2 | . . . 1 . . . . . 1 . . . . . . . . . . . . . . . . . . . . . . . . . . . . Critical Strikes 87 | . . . 6 . . . 1 . 3 1 5 2 1 . . 2 4 11 3 1 . 2 . 9 14 1 . 1 1 3 3 4 . . 3 1 5 Burn 59 | . . . 5 . . . . . . 1 4 2 1 . . 2 4 11 3 1 . 2 . 9 14 . . . . . . . . . . . . Meltdown 18 | . . . . . . . . . . . . . . . . . . . . . . . . . . 1 . 1 1 3 3 4 . . 3 1 1 Destroy 6 | . . . 1 . . . 1 . 3 . 1 . . . . . . . . . . . . . . . . . . . . . . . . . . Corrupt 4 | . . . . . . . . . . . . . . . . . . . . . . . . . . . . . . . . . . . . . 4 Melee Attacks 27 | . . . . . . . 2 14 1 2 8 . . . . . . . . . . . . . . . . . . . . . . . . . . Impact . | . . . . . . . . . . . . . . . . . . . . . . . . . . . . . . . . . . . . . . Slashing 15 | . . . . . . . 2 12 1 . . . . . . . . . . . . . . . . . . . . . . . . . . . . Piercing . | . . . . . . . . . . . . . . . . . . . . . . . . . . . . . . . . . . . . . . Sneak Attacks 4 | . . . . . . . . 2 . 2 . . . . . . . . . . . . . . . . . . . . . . . . . . . Combat Hostiles . | . . . . . . . . . . . . . . . . . . . . . . . . . . . . . . . . . . . . . . Follow-up Attacks . | . . . . . . . . . . . . . . . . . . . . . . . . . . . . . . . . . . . . . . Damage Inflicted 74337 | . 735 404 3363 304 . 432 1576 1255 1472 959 2765 1933 1251 547 . 1227 1639 3741 815 602 94 1043 . 2262 2583 1101 442 2955 792 1975 4317 2727 4806 321 2496 1801 19602 Guns 30513 | . 615 404 3363 304 . 432 1576 1255 1472 959 2765 1933 538 57 . 1007 1639 3741 815 602 94 1043 . 2262 1838 . . . . . . . . . . 924 875 Cannons 32890 | . . . . . . . . . . . . . . . . . . . . . . . . . 745 1101 442 2955 792 1975 4308 2724 4800 321 2496 765 9466 Explosions 10913 | . 120 . . . . . . . . . . . 713 490 . 220 . . . . . . . . . . . . . . . . . . . 112 9258 Melee . | . . . . . . . . . . . . . . . . . . . . . . . . . . . . . . . . . . . . . . Ramming 21 | . . . . . . . . . . . . . . . . . . . . . . . . . . . . . . . 9 3 6 . . . 3 Kinetic 8410 | . 348 234 2587 304 . 432 1576 902 970 625 432 . . . . . . . . . . . . . . . . . . . . . . . . . . Thermal 48868 | . 267 170 776 . . . . 353 502 334 2333 1933 538 57 . 1007 1639 3741 815 602 94 1043 . 2262 2583 1101 442 2955 792 1975 4308 2724 4293 . 2396 877 5956 Explosive 7438 | . 120 . . . . . . . . . . . 713 490 . 220 . . . . . . . . . . . . . . . . . . . . 5895 Electromagnetic 9600 | . . . . . . . . . . . . . . . . . . . . . . . . . . . . . . . . . 507 321 100 924 7748 Impact . | . . . . . . . . . . . . . . . . . . . . . . . . . . . . . . . . . . . . . . Slashing . | . . . . . . . . . . . . . . . . . . . . . . . . . . . . . . . . . . . . . . Piercing . | . . . . . . . . . . . . . . . . . . . . . . . . . . . . . . . . . . . . . . Highest Corruption 49 | . . . . . . . 1 1 1 1 1 4 . . . . 1 40 40 35 30 30 . . 7 8 . . . 5 10 20 17 17 45 46 49 Average Corruption 12 | . . . . . . . 1 1 1 1 1 2 . . . . 1 17 39 30 30 30 . . 3 7 . . . 4 5 9 7 17 33 45 14 Corruption Purged 25 | . . . . . . . . . . . . 4 . . . . . . 5 5 . . . . . . . . . . 4 7 . . . . . Corruption Blocked 8 | . . . . . . . . . . . . . . . . . . 8 . . . . . . . . . . . . . . . . . . . Effects 746 | . . . . . . . 5 6 4 4 7 43 . . . . 3 31 51 27 16 45 . . 8 14 . . . 23 30 51 46 25 91 43 173 Message Errors 163 | . . . . . . . . 1 1 1 2 12 . . . . . 4 13 5 4 9 . . 3 3 . . . 15 6 16 9 2 21 11 25 Matter Fused 163 | . . . . . . . 2 . 2 . 2 13 . . . . 1 4 7 7 6 12 . . 1 5 . . . 1 7 8 13 11 18 4 39 Heat Flow Errors 79 | . . . . . . . 1 . . 1 . 4 . . . . . 3 5 . 3 6 . . . . . . . 2 3 3 4 6 9 4 25 Energy Discharges 73 | . . . . . . . 2 3 . . 1 6 . . . . . 1 7 6 . . . . 1 1 . . . 2 2 7 3 1 7 5 18 Parts Rejected 7 | . . . . . . . . . . . . 1 . . . . . . . 1 . . . . . . . . . . 1 1 1 . . 1 1 Parts Fused 11 | . . . . . . . . 1 . . . 1 . . . . . 1 . . . 2 . . . . . . . . . . . 1 2 . 3 Data Loss (minor) 79 | . . . . . . . . 1 . . 1 3 . . . . 2 4 1 4 2 6 . . . 2 . . . 3 5 7 4 3 9 2 20 Data Loss (major) 39 | . . . . . . . . . . . 1 1 . . . . . 1 5 . . 3 . . 1 1 . . . . 2 3 5 . 7 1 8 Misfires 34 | . . . . . . . . . . . . 1 . . . . . . 2 2 . 1 . . 2 1 . . . . 2 3 2 1 4 5 8 Alerts 15 | . . . . . . . . . . . . 1 . . . . . 3 2 . 1 . . . . . . . . . . . . . 3 . 5 Misdirections 16 | . . . . . . . . . . . . . . . . . . . 4 . . . . . . . . . . . . 1 1 . 2 1 7 Weapon Failures 67 | . . . . . . . . . 1 2 . . . . . . . 10 5 2 . 6 . . . 1 . . . . 2 2 4 . 9 9 14 Overload Shots 40 | . . . . . . . . . . . . 12 . . . . 9 . 4 . . 4 1 2 3 3 . . . . 2 . . . . . . Effects 2 | . . . . . . . . . . . . . . . . . . . . . . . . 1 . . . . . . 1 . . . . . . Energy Bleed 1 | . . . . . . . . . . . . . . . . . . . . . . . . . . . . . . . 1 . . . . . . Heat Surge 1 | . . . . . . . . . . . . . . . . . . . . . . . . 1 . . . . . . . . . . . . . Overflow Damage 1677 | . . . . . . . . . . . . . 16 6 . 3 . . . . . . . . 77 43 4 22 18 27 166 67 197 . 202 63 766 Projectiles 1180 | . . . . . . . . . . . . . . . . . . . . . . . . . 77 43 4 22 18 27 166 67 197 . 202 53 304 Explosions 497 | . . . . . . . . . . . . . 16 6 . 3 . . . . . . . . . . . . . . . . . . . 10 462 Melee . | . . . . . . . . . . . . . . . . . . . . . . . . . . . . . . . . . . . . . . Knockbacks . | . . . . . . . . . . . . . . . . . . . . . . . . . . . . . . . . . . . . . . Impact . | . . . . . . . . . . . . . . . . . . . . . . . . . . . . . . . . . . . . . . Kinetic . | . . . . . . . . . . . . . . . . . . . . . . . . . . . . . . . . . . . . . . Secondary . | . . . . . . . . . . . . . . . . . . . . . . . . . . . . . . . . . . . . . . Self-Inflicted Damage 759 | . 3 . . . . . . . . . . . . . . . . . . . . . . . . . . . . . . . . . . . 756 Shots 26 | . 1 . . . . . . . . . . . . . . . . . . . . . . . . . . . . . . . . . . . 25 Rammed 4 | . . . . . . . . . . . . . . . . . . . . . . . . . . . . . . . 1 1 1 . . . 1 Targets Rammed 4 | . . . . . . . . . . . . . . . . . . . . . . . . . . . . . . . 1 1 1 . . . 1 Kicked . | . . . . . . . . . . . . . . . . . . . . . . . . . . . . . . . . . . . . . . Crushed . | . . . . . . . . . . . . . . . . . . . . . . . . . . . . . . . . . . . . . . Highest Temperature 496 | . 60 24 314 8 . 10 155 108 60 276 294 247 33 . . 67 213 259 251 30 244 245 . 300 358 152 117 216 63 155 399 361 312 231 345 198 496 Average Temperature 91 | . 26 9 33 3 . 4 21 35 19 84 118 53 17 . . 29 50 126 53 10 123 36 . 87 102 76 45 70 27 58 90 119 68 95 102 73 128 Received Heat Transfer 5700 | . 222 18 350 33 . . 177 46 72 201 . 67 89 27 . . 145 . 59 30 11 82 . 196 486 141 30 636 51 268 196 141 100 36 49 232 1509 Effects 29 | . . . . . . . . . . . 2 . . . . . . . . . . . . . 2 . . . . . 2 5 . 1 1 . 16 Shutdowns 11 | . . . . . . . . . . . . . . . . . . . . . . . . . . . . . . . 2 1 . . . . 8 Energy Bleed 6 | . . . . . . . . . . . 1 . . . . . . . . . . . . . 1 . . . . . . 1 . . 1 . 2 Interference 10 | . . . . . . . . . . . 1 . . . . . . . . . . . . . . . . . . . . 3 . 1 . . 5 Damage (minor) 2 | . . . . . . . . . . . . . . . . . . . . . . . . . 1 . . . . . . . . . . . 1 Siege Activations 138 | . . . . . . . . . . . . 13 3 2 . 2 8 . 3 2 1 4 . 5 7 6 2 6 4 4 9 7 14 1 7 5 23 Total Turns 2307 | . . . . . . . . . . . . 131 80 11 . 37 132 . 58 46 6 121 . 105 181 51 9 137 40 72 155 89 187 9 154 87 409 Longest Duration 60 | . . . . . . . . . . . . 23 36 6 . 26 53 . 35 28 6 50 . 40 47 16 7 60 15 27 31 39 26 9 45 40 47 Martial Activations . | . . . . . . . . . . . . . . . . . . . . . . . . . . . . . . . . . . . . . . Shielding Activations . | . . . . . . . . . . . . . . . . . . . . . . . . . . . . . . . . . . . . . . Robots Disrupted 3 | . . . . . . . . . . . . . . . . . . . . . . . . . . . . . . . . . . . . . 3 Combat Hostiles 3 | . . . . . . . . . . . . . . . . . . . . . . . . . . . . . . . . . . . . . 3 Robots Corrupted 50 | . . . . . . . . . . . . . . . . . . . . . . . . . . . . . . . . . 3 2 . 6 39 Combat Hostiles 49 | . . . . . . . . . . . . . . . . . . . . . . . . . . . . . . . . . 3 2 . 6 38 Parts Fried 99 | . . . . . . . . . . . . . . . . . . . . . . . . . . . . . . . . . 11 2 1 16 69 Impact Corruptions . | . . . . . . . . . . . . . . . . . . . . . . . . . . . . . . . . . . . . . . Robots Melted 43 | . . . . . . . . . . . . 1 . . . 1 3 . 2 1 . 2 . 5 6 1 1 2 1 3 4 4 1 . 3 1 1 Combat Hostiles 40 | . . . . . . . . . . . . 1 . . . . 3 . 2 1 . 2 . 3 6 1 1 2 1 3 4 4 1 . 3 1 1 Parts Melted 226 | . . . 6 . . . . . 1 3 . 16 3 . . 6 17 . 7 5 1 9 . 19 30 8 . 12 1 9 34 8 10 . 11 2 8 Heat Transferred 73622 | . 777 370 2442 . . . . 666 1036 703 4847 3663 1110 111 . 1979 3404 8177 1776 1110 211 2072 . 5198 6172 1481 635 4406 1133 2825 5194 1862 3552 . 1813 509 4388 Parts Sabotaged 8 | . . . . . . . . . . . . . . . . . . . . . . . . . . . . . . . . 6 . . . . 2 Parts Stolen . | . . . . . . . . . . . . . . . . . . . . . . . . . . . . . . . . . . . . . . Parts Stripped . | . . . . . . . . . . . . . . . . . . . . . . . . . . . . . . . . . . . . . . Power Chain Reactions 10 | . . . . . . . . . . . . . . . . . . . . . . . . . . . . . . . . . . . . 1 9 Alert | -11 -10 -10 -9 -9 -9 -8 -8 -8 -8 -7 -7 -7 -7 -7 -7 -6 -6 -6 -6 -6 -6 -6 -5 -5 -5 -5 -4 -4 -4 -4 -3 -3 -2 -2 -2 -2 -1 ------- Run | Yrd Mat Min Mat Min Exi Min Mat Gar Mat Fac Was Fac Low Low Dat Pro Fac Was Fac Gar Fac Gar Fac Gar Fac Gar Fac Gar Fac Gar Res Arm Res Gar Res Gar Acc Maximum Alert Level 5 | . . 1 2 . . . 1 3 2 1 . 1 . . . . . . . 1 . 1 . 1 2 2 1 2 1 2 1 1 2 2 1 2 5 Low Security (%) 59 | 100 100 82 50 100 . 100 96 5 . 96 100 92 . . . . 100 100 100 88 100 64 100 53 49 . 62 33 81 46 76 68 60 . 33 . . Level 1 20 | . . 17 34 . . . 3 33 57 3 . 7 . . . . . . . 11 . 35 . 46 49 41 37 11 18 20 23 31 24 35 66 44 11 Level 2 13 | . . . 15 . . . . 53 42 . . . . . . . . . . . . . . . . 58 . 54 . 33 . . 15 64 . 55 36 Level 3 1 | . . . . . . . . 7 . . . . . . . . . . . . . . . . . . . . . . . . . . . . 10 Level 4 2 | . . . . . . . . . . . . . . . . . . . . . . . . . . . . . . . . . . . . . 20 Level 5 1 | . . . . . . . . . . . . . . . . . . . . . . . . . . . . . . . . . . . . . 13 High Security . | . . . . . . . . . . . . . . . . . . . . . . . . . . . . . . . . . . . . . 8 Max Security . | . . . . . . . . . . . . . . . . . . . . . . . . . . . . . . . . . . . . . . Peak Influence 3373 | . 196 239 435 189 . 90 217 797 506 218 50 296 . . . . 80 3 164 215 112 346 181 313 400 483 272 538 286 469 351 271 450 678 381 695 3373 Initial 416 | . . 51 50 154 . . . 135 388 218 50 . . . . . 9 3 . 50 112 14 181 16 163 250 253 42 282 16 243 182 92 328 381 215 416 Average 276 | . 104 150 233 139 . 36 50 461 395 84 2 58 . . . . 21 . 71 124 43 137 104 169 211 392 165 325 127 237 119 163 182 510 213 462 1112 Influence Increases 17513 | . 553 328 1201 214 . 220 534 712 452 295 . 668 270 160 . 197 331 . 323 165 30 332 2 317 686 233 87 516 162 568 741 613 904 390 648 520 4141 Destroy 0b10 Robot/C 10760 | . 340 240 760 160 . 180 320 380 220 220 . 400 240 140 . 160 260 . 200 80 20 220 . 180 460 140 40 360 100 400 500 360 500 200 360 320 2300 Destroy 0b10 Robot/NC 335 | . . . 75 5 . . 5 5 20 20 . 15 . . . 25 . . 5 . . . . 30 5 . . . . . . 5 20 . . . 100 Destroy Leader 1930 | . 70 40 182 30 . 40 102 10 84 50 . 120 30 20 . 10 60 . 60 20 10 10 . 10 82 20 10 30 20 30 110 72 120 20 70 30 358 Allied During Kill 232 | . . . . 4 . . . . . . . . . . . 2 . . . . . . . . . . . 4 . 53 . 7 . 91 . 25 46 Successful Hack 326 | . 34 . 9 . . . 23 14 44 . . 28 . . . . . . 21 . . . . . . . 12 . . 28 . . 24 . 59 16 14 Select Force Hacks 90 | . 60 . 30 . . . . . . . . . . . . . . . . . . . . . . . . . . . . . . . . . . Disable Machine 615 | . 15 15 45 15 . . . . 45 . . 45 . . . . . . . . . . . 45 30 45 15 15 . . . 105 30 15 15 45 75 Anti-Garrison Action 500 | . . . . . . . . 200 . . . . . . . . . . . 50 . 50 . 50 . . . 50 . 50 . . . 50 . . . Destroy Structure 1690 | . 19 3 10 . . . 9 28 9 5 . 15 . . . . 11 . 7 . . 22 2 2 34 13 10 12 42 7 116 64 150 14 129 69 888 Partial Spotted 30 | . . . . . . . . 15 . . . . . . . . . . . . . . . . . . . . . . . . . . . . 15 Lose Combat Pursuer 1005 | . 15 30 90 . . . 75 60 30 . . 45 . . . . . . 30 15 . 30 . . 75 15 . 45 . . 15 . 60 . 15 15 345 Influence Decreases 14140 | . 420 332 933 481 130 220 325 124 769 632 143 375 395 213 115 182 335 11 251 22 225 6 325 27 641 108 510 38 676 158 828 783 643 150 1039 112 1463 Entered New Map 3915 | . . 82 79 243 130 . . 74 409 262 93 . 109 33 115 . 6 8 . 22 103 6 165 7 150 108 230 18 256 8 191 165 85 110 297 72 279 Time Decay 8581 | . 390 230 644 238 . 220 325 . 350 360 40 313 286 180 . 182 287 3 251 . 122 . 160 . 481 . 270 . 410 . 597 478 488 . 522 . 754 Lost Part 882 | . 30 20 70 . . . . 10 10 10 10 . . . . . 42 . . . . . . 20 . . . . . 30 20 80 70 . 30 20 410 Lost Ally 429 | . . . 10 . . . . 40 . . . 9 . . . . . . . . . . . . 10 . 10 20 10 120 20 60 . 40 40 20 20 Purge Threat 333 | . . . 130 . . . . . . . . 53 . . . . . . . . . . . . . . . . . . . . . . 150 . . Squads Dispatched 98 | . 3 1 2 . . . 1 . . 3 . 9 . . . . 4 . 2 . . . . . 3 . 3 . 4 . 6 4 9 . 6 . 38 Investigation 7 | . 2 1 1 . . . . . . . . 1 . . . . . . . . . . . . . . . . . . 1 . . . . . 1 Extermination 39 | . . . . . . . . . . 1 . 6 . . . . 1 . 1 . . . . . 2 . 1 . 2 . 5 3 5 . 5 . 7 Reinforcement 20 | . 1 . 1 . . . 1 . . 2 . . . . . . 3 . 1 . . . . . 1 . . . 2 . . 1 3 . 1 . 3 Assault 28 | . . . . . . . . . . . . 2 . . . . . . . . . . . . . . . . . . . . 1 . . . 25 Garrison 4 | . . . . . . . . . . . . . . . . . . . . . . . . . . . 2 . . . . . . . . . 2 Intercept . | . . . . . . . . . . . . . . . . . . . . . . . . . . . . . . . . . . . . . . Searches Triggered . | . . . . . . . . . . . . . . . . . . . . . . . . . . . . . . . . . . . . . . Data Miner Redirects 4 | . . . . . . . . . . . . . . . . . . . . . . . . . . . . . . . . . . . . . 4 Construction Impeded 1 | . . . . . . . . . . . . . . . . . . . . . . . . . . . . . . . . . . . 1 . . Haulers Reinforced 2 | . . . . . . . . . . . . . . . . . 1 . . . . . . . . . . . 1 . . . . . . . . Active Scanning Responses . | . . . . . . . . . . . . . . . . . . . . . . . . . . . . . . . . . . . . . . Cargo Convoy Interrupts . | . . . . . . . . . . . . . . . . . . . . . . . . . . . . . . . . . . . . . . Stealth | -11 -10 -10 -9 -9 -9 -8 -8 -8 -8 -7 -7 -7 -7 -7 -7 -6 -6 -6 -6 -6 -6 -6 -5 -5 -5 -5 -4 -4 -4 -4 -3 -3 -2 -2 -2 -2 -1 --------- Run | Yrd Mat Min Mat Min Exi Min Mat Gar Mat Fac Was Fac Low Low Dat Pro Fac Was Fac Gar Fac Gar Fac Gar Fac Gar Fac Gar Fac Gar Res Arm Res Gar Res Gar Acc Distress Signals 45 | . . . 8 . . . 4 2 2 1 . . . . . 14 . . 2 . . . . . 2 . . . . . 1 1 2 . 1 . 5 Communications Jammed 171 | . . . . . . . . . . . . . . . . . 1 . . . . . . . . . 35 . 1 . . . 58 . 2 . 74 Distress Signals 162 | . . . . . . . . . . . . . . . . . 1 . . . . . . . . . 35 . 1 . . . 58 . 2 . 65 Times Spotted 763 | . 27 14 63 8 . 9 31 26 17 15 6 28 14 7 . 11 14 6 17 4 1 10 . 10 37 9 7 19 16 19 28 35 36 10 26 15 168 Peak Tracking Total 18 | . 4 4 10 3 . 4 6 4 6 5 1 4 4 3 . 3 3 2 6 3 1 4 . 3 6 4 3 6 3 5 5 6 6 4 5 6 18 Tactical Retreats 39 | . 1 1 4 . . . 2 2 1 . . 1 . . . . . . 2 1 . 1 . . 2 1 . 2 . . 1 . 2 . 1 1 13 Traps | -11 -10 -10 -9 -9 -9 -8 -8 -8 -8 -7 -7 -7 -7 -7 -7 -6 -6 -6 -6 -6 -6 -6 -5 -5 -5 -5 -4 -4 -4 -4 -3 -3 -2 -2 -2 -2 -1 ------- Run | Yrd Mat Min Mat Min Exi Min Mat Gar Mat Fac Was Fac Low Low Dat Pro Fac Was Fac Gar Fac Gar Fac Gar Fac Gar Fac Gar Fac Gar Res Arm Res Gar Res Gar Acc Traps Triggered 23 | . 2 . . . . . 2 4 2 3 . 2 . . . . 2 . . . . . . . . . . . . 1 . 1 . . 2 . 2 Indirectly . | . . . . . . . . . . . . . . . . . . . . . . . . . . . . . . . . . . . . . . Trap Hack Attempts . | . . . . . . . . . . . . . . . . . . . . . . . . . . . . . . . . . . . . . . Triggered . | . . . . . . . . . . . . . . . . . . . . . . . . . . . . . . . . . . . . . . Disarmed . | . . . . . . . . . . . . . . . . . . . . . . . . . . . . . . . . . . . . . . Reprogrammed . | . . . . . . . . . . . . . . . . . . . . . . . . . . . . . . . . . . . . . . Reused . | . . . . . . . . . . . . . . . . . . . . . . . . . . . . . . . . . . . . . . Traps Extracted . | . . . . . . . . . . . . . . . . . . . . . . . . . . . . . . . . . . . . . . Installed . | . . . . . . . . . . . . . . . . . . . . . . . . . . . . . . . . . . . . . . Triggered . | . . . . . . . . . . . . . . . . . . . . . . . . . . . . . . . . . . . . . . Machines | -11 -10 -10 -9 -9 -9 -8 -8 -8 -8 -7 -7 -7 -7 -7 -7 -6 -6 -6 -6 -6 -6 -6 -5 -5 -5 -5 -4 -4 -4 -4 -3 -3 -2 -2 -2 -2 -1 ---------- Run | Yrd Mat Min Mat Min Exi Min Mat Gar Mat Fac Was Fac Low Low Dat Pro Fac Was Fac Gar Fac Gar Fac Gar Fac Gar Fac Gar Fac Gar Res Arm Res Gar Res Gar Acc Machines Disabled 52 | . 1 1 3 1 . . . 2 3 . . 3 . . . 2 . . . 1 . 1 . 4 2 3 1 2 . 1 . 7 2 2 1 4 5 Max in Single Turn 1 | . 1 1 1 1 . . . 1 1 . . 1 . . . 1 . . . 1 . 1 . 1 1 1 1 1 . 1 . 1 1 1 1 1 1 Garrison Access 10 | . . . . . . . . . . 2 . 2 . . . . 3 . . . . . . . . . . . . . . . . . . . 3 Garrison Relay 8 | . . . . . . . . 2 . . . . . . . . . . . 1 . 1 . 1 . . . 1 . 1 . . . 1 . . . Machines Repaired . | . . . . . . . . . . . . . . . . . . . . . . . . . . . . . . . . . . . . . . Machines Dismantled . | . . . . . . . . . . . . . . . . . . . . . . . . . . . . . . . . . . . . . . Machines Sabotaged . | . . . . . . . . . . . . . . . . . . . . . . . . . . . . . . . . . . . . . . Overloaded Fab Kills . | . . . . . . . . . . . . . . . . . . . . . . . . . . . . . . . . . . . . . . Hacking | -11 -10 -10 -9 -9 -9 -8 -8 -8 -8 -7 -7 -7 -7 -7 -7 -6 -6 -6 -6 -6 -6 -6 -5 -5 -5 -5 -4 -4 -4 -4 -3 -3 -2 -2 -2 -2 -1 --------- Run | Yrd Mat Min Mat Min Exi Min Mat Gar Mat Fac Was Fac Low Low Dat Pro Fac Was Fac Gar Fac Gar Fac Gar Fac Gar Fac Gar Fac Gar Res Arm Res Gar Res Gar Acc Machines Accessed 114 | . 8 1 8 . 2 . 8 2 3 3 . 11 . 1 4 . 10 . 5 1 3 1 1 . 2 . 3 . 4 2 5 2 3 1 10 1 9 Terminals 78 | . 6 . 6 . . . 6 2 2 1 . 9 . . . . 7 . 4 1 2 1 . . 1 . 1 . 3 2 5 2 2 1 8 1 5 Fabricators . | . . . . . . . . . . . . . . . . . . . . . . . . . . . . . . . . . . . . . . Repair Stations . | . . . . . . . . . . . . . . . . . . . . . . . . . . . . . . . . . . . . . . Recycling Units 3 | . 2 . 1 . . . . . . . . . . . . . . . . . . . . . . . . . . . . . . . . . . Scanalyzers 7 | . . . 1 . . . 1 . 1 . . 1 . . . . . . . . . . . . . . 1 . . . . . . . 1 . 1 Garrison Access 18 | . . . . . . . 1 . . 2 . 1 . . . . 3 . 1 . 1 . 1 . 1 . 1 . 1 . . . 1 . 1 . 3 Total Hacks 220 | . 17 1 18 . 2 . 17 5 12 6 . 19 . 1 29 . 12 . 7 2 4 1 1 . 2 . 6 . 7 4 9 2 4 2 17 2 11 Successful 100 | . 8 1 7 . 2 . 9 1 5 2 . 7 . 1 29 . 3 . 3 . 1 . 1 . 2 . 3 . 1 2 . . 2 . 5 1 4 Failed 117 | . 9 . 10 . . . 7 4 7 4 . 11 . . . . 9 . 4 2 3 1 . . . . 3 . 6 2 9 2 2 2 12 1 7 Catastrophic 37 | . 3 . 1 . . . 1 3 2 2 . 5 . . . . 3 . 2 . 2 . . . . . . . 2 . 3 2 1 . 3 1 1 Database Lockouts 3 | . . . 1 . . . 1 . . . . 1 . . . . . . . . . . . . . . . . . . . . . . . . . Manual 88 | . 16 . 12 . 1 . 11 . 6 4 . 10 . . . . 6 . 6 . 3 . . . . . 2 . 4 . . . . . 3 . 4 Terminals 146 | . 14 . 15 . . . 14 5 6 4 . 16 . . . . 9 . 6 2 3 1 . . 1 . 2 . 6 4 9 2 3 2 14 2 6 Fabricators . | . . . . . . . . . . . . . . . . . . . . . . . . . . . . . . . . . . . . . . Repair Stations . | . . . . . . . . . . . . . . . . . . . . . . . . . . . . . . . . . . . . . . Recycling Units 4 | . 3 . 1 . . . . . . . . . . . . . . . . . . . . . . . . . . . . . . . . . . Scanalyzers 19 | . . . 2 . . . 2 . 6 . . 2 . . . . . . . . . . . . . . 3 . . . . . . . 2 . 2 Garrison Access 18 | . . . . . . . 1 . . 2 . 1 . . . . 3 . 1 . 1 . 1 . 1 . 1 . 1 . . . 1 . 1 . 3 Terminal Hacks 55 | . 5 1 2 . 2 . 4 1 . . . 2 . 1 29 . . . . . . . . . 1 . . . . 2 . . 1 . 3 1 . Record 12 | . . . . . 1 . . . . . . . . . 11 . . . . . . . . . . . . . . . . . . . . . . Part Schematic 10 | . . . . . . . . . . . . . . . 10 . . . . . . . . . . . . . . . . . . . . . . Robot Schematic 5 | . . . . . . . . . . . . . . . 5 . . . . . . . . . . . . . . . . . . . . . . Robot Analysis 4 | . 3 . . . . . 1 . . . . . . . . . . . . . . . . . . . . . . . . . . . . . . Prototype ID Bank 5 | . 1 . 1 . . . . . . . . . . . 3 . . . . . . . . . . . . . . . . . . . . . . Open Door 2 | . . 1 . . . . . . . . . . . 1 . . . . . . . . . . . . . . . . . . . . . . . Open DSF 1 | . . . . . . . . . . . . . . . . . . . . . . . . . 1 . . . . . . . . . . . . Branch Access Points 1 | . 1 . . . . . . . . . . . . . . . . . . . . . . . . . . . . . . . . . . . . Emergency Access Points 3 | . . . . . . . . 1 . . . . . . . . . . . . . . . . . . . . . 1 . . . . . 1 . Unreport Threat 3 | . . . 1 . . . . . . . . 1 . . . . . . . . . . . . . . . . . . . . . . 1 . . Zone Layout 7 | . . . . . . . 3 . . . . 1 . . . . . . . . . . . . . . . . . . . . 1 . 2 . . Garrison Registry 1 | . . . . . . . . . . . . . . . . . . . . . . . . . . . . . . 1 . . . . . . . Proto ID Catalog 1 | . . . . . 1 . . . . . . . . . . . . . . . . . . . . . . . . . . . . . . . . Fabricator Hacks . | . . . . . . . . . . . . . . . . . . . . . . . . . . . . . . . . . . . . . . Repair Station Hacks . | . . . . . . . . . . . . . . . . . . . . . . . . . . . . . . . . . . . . . . Recycling Unit Hacks . | . . . . . . . . . . . . . . . . . . . . . . . . . . . . . . . . . . . . . . Scanalyzer 7 | . . . 1 . . . 1 . 3 . . 1 . . . . . . . . . . . . . . 1 . . . . . . . . . . Retrieve Study 7 | . . . 1 . . . 1 . 3 . . 1 . . . . . . . . . . . . . . 1 . . . . . . . . . . Garrison Access Hacks 18 | . . . . . . . 1 . . 2 . 1 . . . . 3 . 1 . 1 . 1 . 1 . 1 . 1 . . . 1 . 1 . 3 Unlock Access 9 | . . . . . . . 1 . . . . . . . . . . . 1 . 1 . 1 . 1 . 1 . 1 . . . 1 . 1 . . Seal Access 9 | . . . . . . . . . . 2 . 1 . . . . 3 . . . . . . . . . . . . . . . . . . . 3 Unauthorized Hacks 20 | . 3 . 4 . . . 3 . 2 . . 3 . . . . . . 2 . . . . . . . 1 . . . . . . . 1 . 1 Terminals 17 | . 1 . 3 . . . 3 . 2 . . 3 . . . . . . 2 . . . . . . . 1 . . . . . . . 1 . 1 Assimilate 1 | . 1 . . . . . . . . . . . . . . . . . . . . . . . . . . . . . . . . . . . . Botnet 16 | . . . 3 . . . 3 . 2 . . 3 . . . . . . 2 . . . . . . . 1 . . . . . . . 1 . 1 Fabricators . | . . . . . . . . . . . . . . . . . . . . . . . . . . . . . . . . . . . . . . Repair Stations . | . . . . . . . . . . . . . . . . . . . . . . . . . . . . . . . . . . . . . . Recycling Units 3 | . 2 . 1 . . . . . . . . . . . . . . . . . . . . . . . . . . . . . . . . . . Tunnel 3 | . 2 . 1 . . . . . . . . . . . . . . . . . . . . . . . . . . . . . . . . . . Scanalyzers . | . . . . . . . . . . . . . . . . . . . . . . . . . . . . . . . . . . . . . . Garrison Access . | . . . . . . . . . . . . . . . . . . . . . . . . . . . . . . . . . . . . . . Data Cores Recovered . | . . . . . . . . . . . . . . . . . . . . . . . . . . . . . . . . . . . . . . Used . | . . . . . . . . . . . . . . . . . . . . . . . . . . . . . . . . . . . . . . Hacking Detections 78 | . 5 . 6 . . . 4 2 3 1 . 9 . . . . 7 . 4 1 2 1 . . . . 3 . 3 1 5 2 3 1 8 1 6 Full Trace Events 3 | . 1 . . . . . . . . . . 1 . . . . . . . . . . . . . . . . . . 1 . . . . . . Feedback Events . | . . . . . . . . . . . . . . . . . . . . . . . . . . . . . . . . . . . . . . Feedback Blocked . | . . . . . . . . . . . . . . . . . . . . . . . . . . . . . . . . . . . . . . Robot Schematics Acquired 5 | . . . . . . . . . . . . . . . 5 . . . . . . . . . . . . . . . . . . . . . . Robots Built . | . . . . . . . . . . . . . . . . . . . . . . . . . . . . . . . . . . . . . . Authchips . | . . . . . . . . . . . . . . . . . . . . . . . . . . . . . . . . . . . . . . Time . | . . . . . . . . . . . . . . . . . . . . . . . . . . . . . . . . . . . . . . Total Robot Build Rating . | . . . . . . . . . . . . . . . . . . . . . . . . . . . . . . . . . . . . . . Part Schematics Acquired 10 | . . . . . . . . . . . . . . . 10 . . . . . . . . . . . . . . . . . . . . . . Parts Built . | . . . . . . . . . . . . . . . . . . . . . . . . . . . . . . . . . . . . . . Authchips . | . . . . . . . . . . . . . . . . . . . . . . . . . . . . . . . . . . . . . . Time . | . . . . . . . . . . . . . . . . . . . . . . . . . . . . . . . . . . . . . . Total Part Build Rating . | . . . . . . . . . . . . . . . . . . . . . . . . . . . . . . . . . . . . . . Part Studies Acquired 7 | . . . 1 . . . 1 . 3 . . 1 . . . . . . . . . . . . . . 1 . . . . . . . . . . Parts Repaired . | . . . . . . . . . . . . . . . . . . . . . . . . . . . . . . . . . . . . . . Time . | . . . . . . . . . . . . . . . . . . . . . . . . . . . . . . . . . . . . . . Parts Recycled . | . . . . . . . . . . . . . . . . . . . . . . . . . . . . . . . . . . . . . . Recycled Matter . | . . . . . . . . . . . . . . . . . . . . . . . . . . . . . . . . . . . . . . Retrieved Matter . | . . . . . . . . . . . . . . . . . . . . . . . . . . . . . . . . . . . . . . Retrieved Components . | . . . . . . . . . . . . . . . . . . . . . . . . . . . . . . . . . . . . . . Parts Scanalyzed . | . . . . . . . . . . . . . . . . . . . . . . . . . . . . . . . . . . . . . . Part Schematics Acquired . | . . . . . . . . . . . . . . . . . . . . . . . . . . . . . . . . . . . . . . Parts Damaged . | . . . . . . . . . . . . . . . . . . . . . . . . . . . . . . . . . . . . . . Bothacking | -11 -10 -10 -9 -9 -9 -8 -8 -8 -8 -7 -7 -7 -7 -7 -7 -6 -6 -6 -6 -6 -6 -6 -5 -5 -5 -5 -4 -4 -4 -4 -3 -3 -2 -2 -2 -2 -1 ------------ Run | Yrd Mat Min Mat Min Exi Min Mat Gar Mat Fac Was Fac Low Low Dat Pro Fac Was Fac Gar Fac Gar Fac Gar Fac Gar Fac Gar Fac Gar Res Arm Res Gar Res Gar Acc Used RIF Installer 9 | . . . . . . . . 1 . . . . . . . . . . . 1 . 1 . 1 . 1 . 1 . 1 . . . 1 . 1 . Coupler Efficiency 1 | . . . . . . . . . . . . . . . . . . . . . . . . . . . . 1 . . . . . . . . . Hotswap 1 | . . . . . . . . . . . . . . . . . . . . . . 1 . . . . . . . . . . . . . . . Command Fork 1 | . . . . . . . . . . . . . . . . . . . . . . . . . . . . . . . . . . 1 . . . Signal Jammer 1 | . . . . . . . . . . . . . . . . . . . . . . . . 1 . . . . . . . . . . . . . Robot Detection 1 | . . . . . . . . . . . . . . . . . . . . 1 . . . . . . . . . . . . . . . . . Watcher Feeds 1 | . . . . . . . . . . . . . . . . . . . . . . . . . . 1 . . . . . . . . . . . Structural Interface 1 | . . . . . . . . . . . . . . . . . . . . . . . . . . . . . . 1 . . . . . . . Autooverride 1 | . . . . . . . . . . . . . . . . . . . . . . . . . . . . . . . . . . . . 1 . Robots Hacked 25 | . . . . . . . . . . 2 6 1 . . . . 1 6 . . . . . . 2 . . . 1 2 1 3 . . . . . Non-combat 7 | . . . . . . . . . . 2 . 1 . . . . 1 . . . . . . . 2 . . . 1 . . . . . . . . Combat 18 | . . . . . . . . . . . 6 . . . . . . 6 . . . . . . . . . . . 2 1 3 . . . . . Robot Hacks Applied 25 | . . . . . . . . . . 2 6 1 . . . . 1 6 . . . . . . 2 . . . 1 2 1 3 . . . . . find_chute 3 | . . . . . . . . . . 2 . . . . . . 1 . . . . . . . . . . . . . . . . . . . . ignore_targets 12 | . . . . . . . . . . . 6 . . . . . . 6 . . . . . . . . . . . . . . . . . . . overwrite_iff 1 | . . . . . . . . . . . . . . . . . . . . . . . . . . . . . . . . 1 . . . . . formatsys_low 3 | . . . . . . . . . . . . 1 . . . . . . . . . . . . 1 . . . 1 . . . . . . . . formatsys_high 4 | . . . . . . . . . . . . . . . . . . . . . . . . . 1 . . . . . 1 2 . . . . . formatsys_deep 2 | . . . . . . . . . . . . . . . . . . . . . . . . . . . . . . 2 . . . . . . . Relay Couplers Released 41 | . . . . . . . . 7 . . . 1 . . . . . . . 3 . 3 . 4 . . . 4 . 8 . . . 4 . . 7 Machine Destruction 30 | . . . . . . . . 7 . . . 1 . . . . . . . 3 . 3 . 4 . . . 4 . 4 . . . 4 . . . Programmers 11 | . . . . . . . . . . . . . . . . . . . . . . . . . . . . . . 4 . . . . . . 7 Attached 8 | . . . . . . . . . . . 1 . . . . . . 1 . . . . . . 1 . . 1 . . 2 1 . . . . 1 Fabnet Peak Effective % . | . . . . . . . . . . . . . . . . . . . . . . . . . . . . . . . . . . . . . . Robots Rewired 7 | . . . . . . . . 3 . . . . . . . 2 . . . . . . . . . . . . . . . . . 2 . . . Allies Hacked 3 | . . . . . . . . . . . . . . . . . . . . . . . . . . . . . 1 . . 2 . . . . . Hacks Repelled . | . . . . . . . . . . . . . . . . . . . . . . . . . . . . . . . . . . . . . . Allies | -11 -10 -10 -9 -9 -9 -8 -8 -8 -8 -7 -7 -7 -7 -7 -7 -6 -6 -6 -6 -6 -6 -6 -5 -5 -5 -5 -4 -4 -4 -4 -3 -3 -2 -2 -2 -2 -1 -------- Run | Yrd Mat Min Mat Min Exi Min Mat Gar Mat Fac Was Fac Low Low Dat Pro Fac Was Fac Gar Fac Gar Fac Gar Fac Gar Fac Gar Fac Gar Res Arm Res Gar Res Gar Acc Total Allies 33 | . 1 . . 1 . . . 3 . . . 1 . . . 2 . . . . . . . . 2 1 . 1 1 9 1 3 . 5 . 1 1 Largest Group 6 | . 1 1 1 1 1 . . 3 . . . 1 . . . 2 . . . . . . . . 1 2 1 1 1 6 1 2 . 3 2 1 1 Highest-Rated Group 336 | . 10 10 10 31 31 . . 42 . . . 14 . . . 68 . . . . . . . . 26 99 14 116 23 139 56 87 . 336 165 148 219 Highest-Rated Ally 219 | . 10 10 10 31 31 . . 14 . . . 14 . . . 34 . . . . . . . . 26 85 14 116 23 56 56 48 . 148 95 148 219 Total Orders 9 | . . . . . . . . . . . . 1 . . . . . . . . . . . . 1 5 . . 1 1 . . . . . . . STAY 4 | . . . . . . . . . . . . . . . . . . . . . . . . . . 3 . . . 1 . . . . . . . FOLLOW 1 | . . . . . . . . . . . . . . . . . . . . . . . . . . 1 . . . . . . . . . . . AID 4 | . . . . . . . . . . . . 1 . . . . . . . . . . . . 1 1 . . 1 . . . . . . . . Ally Attacks 180 | . . . . 4 . . . 4 . . . . . . . 25 . . . . . . . . . . . 3 . 57 2 5 . 47 2 26 5 Total Damage 5439 | . . . . 42 . . . . . . . . . . . 1183 . . . . . . . . . . . 228 . 1237 65 113 . 1408 73 923 167 Kills 28 | . . . . 2 . . . . . . . . . . . 4 . . . . . . . . . . . 1 . 6 . . . 7 . 5 3 Allies Corrupted 1 | . . . . . . . . . . . . . . . . . . . . . . . . . . . . . . . . 1 . . . . . Allies Melted . | . . . . . . . . . . . . . . . . . . . . . . . . . . . . . . . . . . . . . . Field Lobotomies 5 | . . . . . . . . . . . . . . . . . . . . . . . . . . 1 . 1 . . . . . 1 . 1 1 Intel | -11 -10 -10 -9 -9 -9 -8 -8 -8 -8 -7 -7 -7 -7 -7 -7 -6 -6 -6 -6 -6 -6 -6 -5 -5 -5 -5 -4 -4 -4 -4 -3 -3 -2 -2 -2 -2 -1 ------- Run | Yrd Mat Min Mat Min Exi Min Mat Gar Mat Fac Was Fac Low Low Dat Pro Fac Was Fac Gar Fac Gar Fac Gar Fac Gar Fac Gar Fac Gar Res Arm Res Gar Res Gar Acc Active Infowar (turns) 19884 | . . . . . . . 759 105 . 318 . 1695 594 363 122 220 700 100 824 366 294 417 327 675 1049 22 592 802 887 216 2706 . 1680 581 1196 241 2033 Optics 1366 | . . . . . . . . . . . . . . . . . . . 518 . . . . 64 784 . . . . . . . . . . . . IFF 1299 | . . . . . . . . . . . . . 594 363 122 220 . . . . . . . . . . . . . . . . . . . . . Terrain 5593 | . . . . . . . . . . . . . . . . . . . . . . . . . 696 . 475 . 861 214 2705 . 171 . 471 . . Traps 14515 | . . . . . . . 759 105 . 318 . 1695 . . . . 617 100 714 366 294 417 327 420 768 22 592 802 885 215 2676 . . . 819 241 1363 Jamming 5452 | . . . . . . . . . . . . . . . . . 147 . . . . . 327 599 . . . . . . . . 1680 581 449 2 1667 ECM 1 | . . . . . . . . . . . . . . . . . . . . . . . . . . . . . . . . . . . 1 . . Robot Analysis Total 4 | . 3 . . . . . 1 . . . . . . . . . . . . . . . . . . . . . . . . . . . . . . Derelict Logs Recovered 9 | . . 2 . 3 . . . . . . . . 2 1 . 1 . . . . . . . . . . . . . . . . . . . . . Drone Launches . | . . . . . . . . . . . . . . . . . . . . . . . . . . . . . . . . . . . . . . Drone Recoveries . | . . . . . . . . . . . . . . . . . . . . . . . . . . . . . . . . . . . . . . Exploration | -11 -10 -10 -9 -9 -9 -8 -8 -8 -8 -7 -7 -7 -7 -7 -7 -6 -6 -6 -6 -6 -6 -6 -5 -5 -5 -5 -4 -4 -4 -4 -3 -3 -2 -2 -2 -2 -1 ------------- Run | Yrd Mat Min Mat Min Exi Min Mat Gar Mat Fac Was Fac Low Low Dat Pro Fac Was Fac Gar Fac Gar Fac Gar Fac Gar Fac Gar Fac Gar Res Arm Res Gar Res Gar Acc Turns Passed 40681 | 73 989 481 2326 506 519 670 1416 1297 790 1309 939 3424 638 363 126 842 1310 553 824 424 327 804 327 675 1366 583 593 856 983 1136 2751 1236 1984 581 1615 619 4426 Spaces Moved 18075 | 43 547 368 940 198 216 253 719 498 280 478 361 1762 315 200 78 320 550 150 425 212 185 251 173 230 518 235 316 367 418 540 1136 559 788 308 760 255 2123 Core 176 | 1 . . . . . . . . . . . . . . . . . . . . . . . . . . . . . . . . . . . . 175 Treads 17202 | 27 320 . 853 198 216 253 719 498 280 478 361 1762 315 200 78 320 550 150 425 212 185 251 173 230 518 235 316 367 418 540 1136 559 788 308 760 255 1948 Legs . | . . . . . . . . . . . . . . . . . . . . . . . . . . . . . . . . . . . . . . Wheels 697 | 15 227 368 87 . . . . . . . . . . . . . . . . . . . . . . . . . . . . . . . . . . Hover . | . . . . . . . . . . . . . . . . . . . . . . . . . . . . . . . . . . . . . . Flight . | . . . . . . . . . . . . . . . . . . . . . . . . . . . . . . . . . . . . . . Fastest Speed 50 | 50 105 105 105 240 240 240 160 200 200 236 160 160 160 160 160 160 160 160 160 160 160 160 160 160 160 160 160 160 160 160 160 160 162 170 162 162 50 Average Speed 169 | 134 137 105 196 240 240 240 162 200 218 236 178 160 160 160 162 205 160 160 160 160 160 160 160 160 160 160 160 160 160 160 186 160 165 170 166 162 151 Slowest Speed 320 | 160 160 105 240 240 240 240 240 200 236 238 243 160 240 160 240 240 160 160 160 160 160 160 160 160 160 160 160 160 160 160 240 320 246 170 170 162 250 Overloaded Moves . | . . . . . . . . . . . . . . . . . . . . . . . . . . . . . . . . . . . . . . Propulsion Burnouts . | . . . . . . . . . . . . . . . . . . . . . . . . . . . . . . . . . . . . . . Robots Hopped . | . . . . . . . . . . . . . . . . . . . . . . . . . . . . . . . . . . . . . . Potential Cave-ins 4 | . . . . . . . . . . . . . . . . . . . . . . . . . . . . . . . 2 . . . . . 2 Cave-ins Triggered . | . . . . . . . . . . . . . . . . . . . . . . . . . . . . . . . . . . . . . . Exploration Rate (%) 43 | 4 89 87 93 53 60 57 79 48 39 15 86 55 47 40 68 53 18 70 18 32 7 30 8 31 21 38 15 50 20 56 26 31 21 49 22 36 65 Regions Visited 37 Branch Regions 9 Pre-discovered Areas 8 | . 2 1 1 1 1 . . . . . . . . 1 1 . . . . . . . . . . . . . . . . . . . . . . Known Exits Taken 14 | . 1 . . 1 . 1 1 . 1 . . . . . . 1 . . 1 . 1 . 1 . 1 . 1 . 1 . . . 1 . 1 . . Unknown Exits Taken 10 | 1 . 1 1 . 1 . . . . . . 1 1 1 1 . . . . . . . . . . . . . . . 1 1 . . . . . Scrap Searched 6 | . . 1 . 1 . . . . . . . . 2 . . 2 . . . . . . . . . . . . . . . . . . . . . Spaces Dug 237 | . . . . . . . 2 3 1 . . 11 . . . . 9 . 4 . . 2 1 1 13 2 2 . 8 . 52 12 25 1 22 5 61 Terrain Destroyed 769 | . 16 3 4 . . . 2 4 5 . . 11 62 35 . 20 9 . 4 . . 2 1 2 16 2 5 . 23 . 69 34 54 1 39 16 330 Melee 6 | . . . . . . . 2 3 1 . . . . . . . . . . . . . . . . . . . . . . . . . . . . Projectile 398 | . . 3 4 . . . . 1 4 . . 11 . . . . 9 . 4 . . 2 1 2 16 2 5 . 23 . 69 34 54 1 39 16 98 AOE 365 | . 16 . . . . . . . . . . . 62 35 . 20 . . . . . . . . . . . . . . . . . . . . 232 Terrain Rammed . | . . . . . . . . . . . . . . . . . . . . . . . . . . . . . . . . . . . . . . Walls Destroyed . | . . . . . . . . . . . . . . . . . . . . . . . . . . . . . . . . . . . . . . Machines Disabled . | . . . . . . . . . . . . . . . . . . . . . . . . . . . . . . . . . . . . . . Actions | -11 -10 -10 -9 -9 -9 -8 -8 -8 -8 -7 -7 -7 -7 -7 -7 -6 -6 -6 -6 -6 -6 -6 -5 -5 -5 -5 -4 -4 -4 -4 -3 -3 -2 -2 -2 -2 -1 --------- Run | Yrd Mat Min Mat Min Exi Min Mat Gar Mat Fac Was Fac Low Low Dat Pro Fac Was Fac Gar Fac Gar Fac Gar Fac Gar Fac Gar Fac Gar Res Arm Res Gar Res Gar Acc Total 25448 | 54 700 432 1273 219 218 300 909 697 392 600 538 2253 402 232 78 441 887 275 515 266 210 584 222 412 921 400 388 529 683 746 1574 805 1307 351 1010 393 3232 Wait 4354 | . 89 35 157 9 . 29 81 60 39 52 58 377 56 20 . 30 270 . 46 26 9 286 29 91 287 126 51 94 214 134 250 148 381 23 133 77 587 Move 18049 | 42 546 367 939 197 215 252 719 497 279 478 360 1761 314 199 77 319 550 149 425 211 185 250 173 229 518 234 315 366 418 539 1136 558 788 307 760 254 2123 Hop . | . . . . . . . . . . . . . . . . . . . . . . . . . . . . . . . . . . . . . . Pick Up 215 | 4 10 5 21 . 1 1 11 9 10 9 15 10 . 1 . 1 3 5 4 3 4 1 3 3 6 1 2 2 4 7 13 10 11 . 9 3 13 Fast Attach 144 | 6 5 1 10 . . . 5 . . 2 6 6 . . . 3 . 2 2 3 1 3 6 8 2 6 3 4 . 7 8 11 9 . 7 7 11 Attach 121 | . 4 1 9 . 1 . 4 3 3 4 3 2 . 1 . 1 6 4 1 2 1 . 3 3 3 . 2 . . 3 8 3 11 . 5 3 27 Detach 13 | . . . . . . . . . . . . 1 . . . . . 2 . . . . . 3 . . . . . . 2 . . . . 1 4 Swap 375 | 2 7 1 11 1 . . 21 26 11 15 6 22 8 3 1 6 14 11 7 4 2 5 . 4 30 4 3 8 17 13 20 11 15 5 19 6 36 Drop 299 | . . 3 30 1 1 1 20 7 15 10 24 16 . 1 . 4 . 6 5 3 5 4 7 9 9 7 4 7 4 11 21 12 5 . 20 7 20 Fire 1760 | . 39 19 96 11 . 17 46 44 34 26 58 58 24 7 . 29 44 96 25 14 3 35 1 62 66 22 8 48 26 32 116 50 86 16 57 35 410 Melee 27 | . . . . . . . 2 14 1 2 8 . . . . . . . . . . . . . . . . . . . . . . . . . . Ram 2 | . . . . . . . . . . . . . . . . . . . . . . . . . . . . . . . . 1 . . . . 1 Kick . | . . . . . . . . . . . . . . . . . . . . . . . . . . . . . . . . . . . . . . Crush 2 | . . . . . . . . . . . . . . . . . . . . . . . . . . . . . . . . 1 1 . . . . Escape Stasis 4 | . . . . . . . . 2 . 2 . . . . . . . . . . . . . . . . . . . . . . . . . . . Rewire 83 | . . . . . . . . 35 . . . . . . . 48 . . . . . . . . . . . . . . . . . . . . . Trap . | . . . . . . . . . . . . . . . . . . . . . . . . . . . . . . . . . . . . . . Miscellaneous . | . . . . . . . . . . . . . . . . . . . . . . . . . . . . . . . . . . . . . . Route ------- -11/Scrapyard -10/Materials (discovered 4 exits: *Mat x3 / *Min) -10/Mines (discovered 3 exits: *Mat x2 / [*Sub]) -9/Materials (discovered 4 exits: *Mat x3 / [*Min]) -9/Mines (discovered 3 exits: *Mat x2 / *Exi) -9/Exiles -8/Mines -8/Materials (discovered 3 exits: *Fac x2 / Gar) -8/Garrison (discovered 2 exits: *Mat x2) -8/Materials -7/Factory -7/Waste -7/Factory (discovered 4 exits: *Fac x2 / *Sto / [*Low]) -7/Lower Caves -7/Lower Caves -7/Data Miner -6/Proximity Caves -6/Factory -6/Waste -6/Factory -6/Garrison -6/Factory -6/Garrison -5/Factory -5/Garrison -5/Factory -5/Garrison -4/Factory -4/Garrison (discovered 2 exits: *Fac x2) -4/Factory (discovered 3 exits: [*Upp x2] / Gar) -4/Garrison (discovered 3 exits: *Res x3) -3/Research (discovered 2 exits: *Arm / *Tes) -3/Armory -2/Research (discovered 2 exits: *Qua / Gar) -2/Garrison -2/Research (discovered 2 exits: *Qua / Gar) -2/Garrison -1/Access History --------- Turn | Location | Event 7 | -11/Scrapyard | Discovered new exit (range 15) 74 | -11/Scrapyard | Entered Materials 302 | -10/Materials | Build established: Mutant 328 | -10/Materials | Discovered new exit (range 16) 494 | -10/Materials | Discovered new exit (range 16) 610 | -10/Materials | Discovered new exit (range 15) 859 | -10/Materials | Discovered new exit (range 13) 943 | -10/Materials | Identified exit to Mines 1063 | -10/Materials | Entered Mines 1063 | -10/Mines | Accompanied by 1 ally 1077 | -10/Mines | Met a Derelict bent on vengeance 1082 | -10/Mines | A weapon hastily lodged in a ceiling crevice suddenly fell to the ground 1108 | -10/Mines | Discovered new exit (range 5) 1122 | -10/Mines | Core integrity fell below 50% 1196 | -10/Mines | Found a hidden stash of uninstalled traps 1209 | -10/Mines | Learned location of Recycling (-7) 1357 | -10/Mines | Discovered new exit (range 10) 1441 | -10/Mines | Met a Derelict shopkeep closing up shop 1444 | -10/Mines | Learned location of 1 exit from Materials 1513 | -10/Mines | Discovered new exit (range 15) 1544 | -10/Mines | Entered Materials 1544 | -9/Materials | Accompanied by 1 ally 1544 | -9/Materials | Evolved 2 slots: Utility x1, Weapon x1 1545 | -9/Materials | Identified exit to Materials 1600 | -9/Materials | Central database locked down 2184 | -9/Materials | Build established: Scavenger-Tank 2357 | -9/Materials | Core integrity fell below 50% 2378 | -9/Materials | Destroyed 8 combat bots 2384 | -9/Materials | Lost 3 parts (1p1n1u) 2433 | -9/Materials | Discovered new exit (range 13) 2533 | -9/Materials | Build established: Tank 3127 | -9/Materials | Discovered exit to Materials (range 4) 3589 | -9/Materials | Discovered exit to Materials (range 3) 3870 | -9/Materials | Entered Mines 3871 | -9/Mines | Assembled infested the area 3891 | -9/Mines | Identified exit to Exiles 3898 | -9/Mines | Met 8R-AWN 4132 | -9/Mines | Discovered exit to Materials (range 3) 4170 | -9/Mines | Received a Mining Laser from a helpful Derelict 4250 | -9/Mines | Discovered exit to Materials (range 6) 4295 | -9/Mines | Learned location of 1 exit from Materials 4376 | -9/Mines | Entered Exiles 4376 | -9/Exiles | Accompanied by 1 ally 4432 | -9/Exiles | Welcomed by 8R-AWN 4477 | -9/Exiles | Met EX-HEX 4540 | -9/Exiles | Met EX-BIN 4568 | -9/Exiles | Aligned with FarCom system 4571 | -9/Exiles | Given EX-Vault access code 4628 | -9/Exiles | Opened EX-Vault 4647 | -9/Exiles | Found Field Lobotomy Kit 4696 | -9/Exiles | Warned to stay clear of 0b10 Research branches 4761 | -9/Exiles | Met EX-DEC 4782 | -9/Exiles | Learned location of Zion (-6) 4873 | -9/Exiles | Discovered new exit (range 10) 4895 | -9/Exiles | Left Exiles lab with Field Lobotomy Kit 4895 | -9/Exiles | Entered Mines 5193 | -8/Mines | Build established: Skirmisher 5252 | -8/Mines | Discovered exit to Materials (range 10) 5565 | -8/Mines | Entered Materials 5565 | -8/Materials | Evolved 2 slots: Propulsion x2 5566 | -8/Materials | Identified exit to Factory 5864 | -8/Materials | Central database locked down 6270 | -8/Materials | Build established: Scavenger-Skirmisher 6400 | -8/Materials | Discovered exit to Factory (range 15) 6981 | -8/Materials | Identified exit to Garrison 6981 | -8/Materials | Entered Garrison 7009 | -8/Garrison | Triggered checkpoint 7047 | -8/Garrison | Garrison Relay disabled 7109 | -8/Garrison | Garrison Relay disabled 7455 | -8/Garrison | Triggered checkpoint 7601 | -8/Garrison | Triggered checkpoint 7685 | -8/Garrison | Discovered new exit (range 14) 7938 | -8/Garrison | Triggered checkpoint 8144 | -8/Garrison | Lost 3 allies 8149 | -8/Garrison | Discovered new exit (range 9) 8230 | -8/Garrison | Installed Relay Interface Framework 8278 | -8/Garrison | Entered Materials 8846 | -8/Materials | Build established: Skirmisher 9008 | -8/Materials | Discovered exit to Factory (range 16) 9068 | -8/Materials | Entered Factory 9068 | -7/Factory | Evolved 2 slots: Power x1, Utility x1 9961 | -7/Factory | Destroyed 7 combat bots 10370 | -7/Factory | Discovered new exit (range 12) 10377 | -7/Factory | Manually triggered Chute Trap 10377 | -7/Factory | Sucked down chute 10377 | -7/Factory | Entered Waste 10392 | -7/Waste | Spotted C-40 Crusher 10398 | -7/Waste | Spotted C-40 Crusher 10439 | -7/Waste | Crushed by Compactor (1 part destroyed, 2 dropped) 10471 | -7/Waste | Spotted C-40 Crusher 10485 | -7/Waste | Spotted C-40 Crusher 10559 | -7/Waste | Spotted C-40 Crusher 10610 | -7/Waste | Spotted C-40 Crusher 10700 | -7/Waste | Destroyed C-40 Crusher 10736 | -7/Waste | Destroyed C-40 Crusher 10818 | -7/Waste | Destroyed C-40 Crusher 10881 | -7/Waste | Destroyed C-40 Crusher 10973 | -7/Waste | Destroyed C-40 Crusher 11031 | -7/Waste | Build established: Scavenger-Tank 11097 | -7/Waste | Destroyed C-40 Crusher 11297 | -7/Waste | Discovered new exit (range 12) 11316 | -7/Waste | Entered Factory 11775 | -7/Factory | Central database locked down 12376 | -7/Factory | Discovered new exit (range 10) 12458 | -7/Factory | Identified exit to Factory 13188 | -7/Factory | Discovered new exit (range 11) 13209 | -7/Factory | Identified exit to Storage 13442 | -7/Factory | Discovered exit to Factory (range 6) 13480 | -7/Factory | Build established: Scavenger-Skirmisher 14641 | -7/Factory | Build established: Scavenger-Tank 14661 | -7/Factory | Discovered new exit (range 16) 14740 | -7/Factory | Entered Lower Caves 15191 | -7/Lower Caves | Learned Factory security intel 15266 | -7/Lower Caves | Learned 4 Factory zone layouts 15290 | -7/Lower Caves | Discovered new exit (range 16) 15378 | -7/Lower Caves | Entered another Lower Caves area 15517 | -7/Lower Caves | Destroyed 7 combat bots 15638 | -7/Lower Caves | Learned location of Extension (-6) 15734 | -7/Lower Caves | Discovered new exit (range 5) 15739 | -7/Lower Caves | Attracted the attention of an 0b10 checkpoint 15741 | -7/Lower Caves | Entered Data Miner 15741 | -7/Data Miner | Discovered new exit (range 6) 15772 | -7/Data Miner | Met Data Miner 15799 | -7/Data Miner | Learned location of Section 7 (-2) 15799 | -7/Data Miner | Acquired the access code to Warlord's prototype stash 15826 | -7/Data Miner | Received God Mode back door access code from Data Miner 15867 | -7/Data Miner | Entered Proximity Caves 16355 | -6/Proximity Caves | Found Prototype Launcher 16355 | -6/Proximity Caves | Identified Gui. EMP Blaster 16709 | -6/Proximity Caves | Entered Factory 16709 | -6/Factory | Evolved 2 slots: Propulsion x2 16710 | -6/Factory | Identified exit to Factory 18019 | -6/Factory | Manually triggered Chute Trap 18019 | -6/Factory | Sucked down chute 18019 | -6/Factory | Entered Waste 18034 | -6/Waste | EMP discharged 18054 | -6/Waste | Spotted C-40 Crusher 18092 | -6/Waste | Spotted C-40 Crusher 18116 | -6/Waste | Destroyed C-40 Crusher 18122 | -6/Waste | Spotted C-40 Crusher 18122 | -6/Waste | Spotted C-40 Crusher 18134 | -6/Waste | EMP discharged 18171 | -6/Waste | Spotted C-40 Crusher 18234 | -6/Waste | EMP discharged 18234 | -6/Waste | System corruption reached 10% 18252 | -6/Waste | Spotted C-40 Crusher 18302 | -6/Waste | Destroyed C-40 Crusher 18334 | -6/Waste | EMP discharged 18354 | -6/Waste | Destroyed C-40 Crusher 18373 | -6/Waste | Destroyed C-40 Crusher 18434 | -6/Waste | EMP discharged 18434 | -6/Waste | System corruption reached 30% 18439 | -6/Waste | Destroyed C-40 Crusher 18442 | -6/Waste | Destroyed C-40 Crusher 18534 | -6/Waste | EMP discharged 18552 | -6/Waste | Discovered new exit (range 12) 18572 | -6/Waste | Entered Factory 19309 | -6/Factory | Build established: Scavenger-Skirmisher 19396 | -6/Factory | Identified exit to Garrison 19396 | -6/Factory | Entered Garrison 19573 | -6/Garrison | Triggered checkpoint 19720 | -6/Garrison | Expanded RIF knowledge: Robot Detection 19754 | -6/Garrison | Triggered checkpoint 19770 | -6/Garrison | Garrison Relay disabled 19809 | -6/Garrison | Discovered new exit (range 8) 19820 | -6/Garrison | Entered Factory 20060 | -6/Factory | Build established: Scavenger-Tank 20147 | -6/Factory | Identified exit to Garrison 20147 | -6/Factory | Entered Garrison 20151 | -6/Garrison | Triggered checkpoint 20517 | -6/Garrison | Triggered checkpoint 20579 | -6/Garrison | Garrison Relay disabled 20798 | -6/Garrison | Triggered checkpoint 20877 | -6/Garrison | Discovered exit to Factory (range 10) 20913 | -6/Garrison | Expanded RIF knowledge: Hotswap 20951 | -6/Garrison | Entered Factory 20951 | -5/Factory | Evolved 2 slots: Utility x2 21278 | -5/Factory | Identified exit to Garrison 21278 | -5/Factory | Entered Garrison 21357 | -5/Garrison | Triggered checkpoint 21427 | -5/Garrison | Expanded RIF knowledge: Signal Jamming 21441 | -5/Garrison | Garrison Relay disabled 21517 | -5/Garrison | Triggered checkpoint 21676 | -5/Garrison | Discovered new exit (range 15) 21845 | -5/Garrison | H-XX Assembler disabled 21953 | -5/Garrison | Entered Factory 22082 | -5/Factory | Identified exit to DSF 22315 | -5/Factory | Build established: Scavenger-Skirmisher 23319 | -5/Factory | Identified exit to Garrison 23319 | -5/Factory | Entered Garrison 23319 | -5/Garrison | Accompanied by 1 ally 23339 | -5/Garrison | Expanded RIF knowledge: Watcher Feeds 23370 | -5/Garrison | Build established: Scavenger-Tank 23431 | -5/Garrison | H-XX Assembler disabled 23673 | -5/Garrison | Triggered checkpoint 23728 | -5/Garrison | Spotted B-75 Beast 23738 | -5/Garrison | Assimilated B-75 Beast with FLK Orb 23781 | -5/Garrison | Triggered checkpoint 23886 | -5/Garrison | Discovered new exit (range 8) 23902 | -5/Garrison | Entered Factory 23902 | -4/Factory | Accompanied by 1 ally 23902 | -4/Factory | Evolved 2 slots: Power x1, Utility x1 24195 | -4/Factory | Build established: Scavenger-Skirmisher 24391 | -4/Factory | Garrison activated, responded to threat 24484 | -4/Factory | Identified exit to Garrison 24495 | -4/Factory | Entered Garrison 24579 | -4/Garrison | Triggered checkpoint 24670 | -4/Garrison | Build established: Tank 24684 | -4/Garrison | Garrison Relay disabled 24755 | -4/Garrison | Spotted B-86 Titan 24772 | -4/Garrison | Assimilated B-86 Titan with FLK Orb 24848 | -4/Garrison | Destroyed 7 combat bots 24856 | -4/Garrison | Found Hvy. Reflective Plating 24978 | -4/Garrison | Build established: Bothacker-Tank 25033 | -4/Garrison | Triggered checkpoint 25069 | -4/Garrison | Discovered new exit (range 10) 25215 | -4/Garrison | Triggered checkpoint 25287 | -4/Garrison | Discovered new exit (range 15) 25337 | -4/Garrison | Expanded RIF knowledge: Coupler Efficiency 25351 | -4/Garrison | Entered Factory 25534 | -4/Factory | Discovered new exit (range 2) 25670 | -4/Factory | Build established: Bothacker-Skirmisher 25720 | -4/Factory | Discovered new exit (range 23) 26334 | -4/Factory | Identified exit to Garrison 26334 | -4/Factory | Entered Garrison 26354 | -4/Garrison | Triggered checkpoint 26416 | -4/Garrison | Expanded RIF knowledge: Structural Interface 26832 | -4/Garrison | Triggered checkpoint 26865 | -4/Garrison | Garrison Relay disabled 26926 | -4/Garrison | Assimilated ARC 7a with formatsys_deep 26957 | -4/Garrison | Spotted B-86 Titan 26963 | -4/Garrison | Destroyed B-86 Titan 26982 | -4/Garrison | Triggered checkpoint 27079 | -4/Garrison | Assimilated ARC 7b with formatsys_deep 27084 | -4/Garrison | Triggered checkpoint 27168 | -4/Garrison | Build established: Botlord-Tank 27170 | -4/Garrison | Triggered checkpoint 27206 | -4/Garrison | Discovered new exit (range 15) 27251 | -4/Garrison | Lost 5 allies 27391 | -4/Garrison | Discovered new exit (range 22) 27391 | -4/Garrison | Discovered new exit (range 62) 27391 | -4/Garrison | Discovered new exit (range 25) 27470 | -4/Garrison | Entered Research 27470 | -3/Research | Evolved 2 slots: Utility x2 27870 | -3/Research | Discovered new exit (range 18) 28387 | -3/Research | Identified exit to Testing 29879 | -3/Research | Build established: Bothacker-Tank 30004 | -3/Research | System corruption reached 10% 30218 | -3/Research | Discovered new exit (range 2) 30221 | -3/Research | Entered Armory 31443 | -3/Armory | Discovered new exit (range 5) 31457 | -3/Armory | Entered Research 31457 | -2/Research | Evolved 2 slots: Propulsion x2 31488 | -2/Research | Lost 7 parts (1p1n4u1w) 31533 | -2/Research | Found Prototype Processor 31533 | -2/Research | Identified Exp. Signal Interpreter 31786 | -2/Research | Build established: Scavenger-Tank 31809 | -2/Research | Discovered new exit (range 10) 31895 | -2/Research | Identified exit to Quarantine 33029 | -2/Research | System corruption reached 10% 33068 | -2/Research | Lost 4 parts (3u1w) 33207 | -2/Research | First assault squad dispatched 33441 | -2/Research | Identified exit to Garrison 33441 | -2/Research | Entered Garrison 33496 | -2/Garrison | Rewired Striker 33509 | -2/Garrison | Rewired Striker 33637 | -2/Garrison | Triggered checkpoint 33638 | -2/Garrison | Spotted B-90 Cyclops 33645 | -2/Garrison | Assimilated B-90 Cyclops with FLK Orb 33671 | -2/Garrison | Triggered checkpoint 33691 | -2/Garrison | Garrison Relay disabled 33710 | -2/Garrison | Expanded RIF knowledge: Command Fork 33911 | -2/Garrison | Triggered checkpoint 33996 | -2/Garrison | Found embedded Infiltrators 34006 | -2/Garrison | Discovered new exit (range 9) 34014 | -2/Garrison | Heavy support dispatched to Research 34017 | -2/Garrison | Identified exit to Research 34022 | -2/Garrison | Entered Research 34022 | -2/Research | Accompanied by 2 allies 34253 | -2/Research | Found Quantum Capacitor 34506 | -2/Research | Found Prototype Device 34506 | -2/Research | Identified Exp. ECM Suite 34690 | -2/Research | System corruption reached 30% 35483 | -2/Research | Discovered exit to Quarantine (range 16) 35637 | -2/Research | Identified exit to Garrison 35637 | -2/Research | Entered Garrison 35729 | -2/Garrison | Found Prototype Processor 35729 | -2/Garrison | Identified Exp. Melee Analysis Suite 35747 | -2/Garrison | QS Assembler disabled 35760 | -2/Garrison | Found Prototype Device 35760 | -2/Garrison | Identified Exp. Transmission Jammer 35867 | -2/Garrison | Spotted B-90 Cyclops 35905 | -2/Garrison | Assimilated B-90 Cyclops with FLK Orb 36028 | -2/Garrison | Triggered checkpoint 36089 | -2/Garrison | Triggered checkpoint 36232 | -2/Garrison | Expanded RIF knowledge: Autooverride 36242 | -2/Garrison | Discovered new exit (range 10) 36256 | -2/Garrison | Entered Access 36256 | -1/Access | Evolved 2 slots: Utility x2 36756 | -1/Access | First assault squad dispatched 36786 | -1/Access | Incoming assault squad redirected 37005 | -1/Access | Destroyed 8 combat bots 37018 | -1/Access | Found Quantum Capacitor 37813 | -1/Access | Destroyed 8 combat bots 38478 | -1/Access | Watched by a mysterious "MATRIX" hacker 38810 | -1/Access | System corruption reached 10% 39021 | -1/Access | Incoming assault squad redirected 39160 | -1/Access | Lost 4 parts (3u1w) 39404 | -1/Access | Build established: Scavenger-Mutant 39777 | -1/Access | Destroyed 10 combat bots 39781 | -1/Access | Incoming assault squad redirected 39810 | -1/Access | Build established: Scavenger-Tank 40068 | -1/Access | Lost 4 parts (3n1w) 40081 | -1/Access | Destroyed 10 combat bots 40279 | -1/Access | Incoming assault squad redirected 40300 | -1/Access | Spotted B-99 Colossus 40302 | -1/Access | Assimilated B-99 Colossus with FLK Orb 40318 | -1/Access | High security lockdown imminent 40348 | -1/Access | Destroyed 14 combat bots 40398 | -1/Access | High security lockdown engaged 40486 | -1/Access | Found Gamma Bomb Array 40508 | -1/Access | Found Quantum Capacitor 40531 | -1/Access | Garrison activated, responded to threat 40551 | -1/Access | System corruption reached 30% 40570 | -1/Access | Core integrity fell below 50% 40576 | -1/Access | Released all parts (1) 40577 | -1/Access | Destroyed 16 combat bots 40607 | -1/Access | Lost 25 parts (3p4n10u8w) 40652 | -1/Access | Core integrity fell below 20% 40682 | -1/Access | Destroyed by P-80 Master with Gamma Rifle Last Messages --------------- 40632_ RIF reveals location of hidden door. 40637_ K-01 Serf cleans the Terminal. 40638_ System corrupted: Energy discharge (-34). 40638_ K-01 Serf destroyed. 40639_ K-01 Serf collects debris. 40642_ R-10 Processor collects Corrupted Med. Matter Pod. 40643_ K-01 Serf collects debris. 40643_ O-32 Director: "IFF HANDSHAKE FAILED. SECURING TERMINAL." 40653_ GTGZBGW LUXIGM3A MAXX6PWEFCFY CU2CY2LB#V 40657_ System corrupted: Enh. Nova Cannon failed to cycle. 40660_ P-80 Master resets P-80 Master, system corruption cleaned. 40665_ Enh. Nova Cannon destroyed. 40668_ ALERT: Heavy assault forces dispatched. 40669_ S9KL0IFWYJ8HTV0GN7ZEEOUB 40673_ Acquired 60 matter. 40678_ Slammed into K-01 Serf. Map ----- +----------------------------------------------------+ | ## " #????# + #??##??????? | | ## """ #????# # = #??#"####### | | ## """ ###### # #??#" | | ## " # ### # #??## | | #+######### # # # #???# """" | | # #??# =+ ##############"###???# """" | | # #??# # % ######???????# #?????# """" | | #??# # % #???????# #??##?#] """" | | #??# # #### #???????#"###"### """ | | #??# # #??# #???????## ## """" | | #??# # #??# #????????# ## | | #### # #??# ########?# #" | | + # #??# # ### ## | | ###### # #??# # p + ## | | ######## #??# # % ### #"####### | | #??# /p % %%### ###?????? | | #####+##??#p# % # # ##??????? | | #?????????#p# % ### #???????? | | +?????????# ########## #???????? | | ###+##+########?????????# #????????# #???????? | | ?????? ????????????????# #????????# #???????? | | ??????? ???????????????#%#????????# #???????? | | ??????? #??????????????# #????????# #???????? | | ???????? #??????????????# #????????# #???????? | | ????????????????????????# #????????# #???????? | | ????????????????????????#@#????????# #???????? | | ????????????????????????# #???????## ##??????? | | ??????????????????????###k###?????# H #??????? | | ??????????????????????# ####### #??????? | | ??????????????????????# T" #??????? | | ??????????????????????+ "" +??????? | | ??????????????????????# #??????? | | ??????????????????????# ! ####### #??????? | | ??????????????????????#######?????# #??????? | | ??????????????????????????????????### ###??????? | | ????????????????????????????????????# #????????? | | ????????????????????????????????????# #????????? | | ????????????????????????????????????# #????????? | | ????????????????????????????????????# #????????? | | ???????????????????????###########??# #????????? | | ???????????????????????# #??# #????????? | | ?????????????########### #?? ????????? | | ?????????????# #? ????????? | | ?????????????# "" ## ????????? | | ?????????????# = T ## " ????????? | | ?####+####???#[[* ## ????????? | | ?# #####%== ## ????????? | | ?# [=[ ##### ## ???????? | | ?# #???# ####### #???????? | | ?+ #??###### #####?????? #???????? | +----------------------------------------------------+ Best States ------------- Heat Dissipation 137 Coolant Potential 100 Energy Generation 65 Energy Capacity 850 Matter Stores 300 Matter Capacity 300 Sight Range 22 Terrain Scan Range 20 Terrain Scan Density 10 Jamming Range 22 Base Temperature (-) 150 EM Shielding 2 Corruption Block 8 Armor Coverage 1200 Resistance: KI 30 Resistance: TH 30 Weapon Shielding 66 Point Defense Rating 160 Evasion (%) 50 Melee Accuracy 12 Recoil Reduction 8 Defensive Hacking 10 Relay Coupler Types 2 Relay Coupler Value 68 Item Schematics ----------------- Combat Drone Bay | -7/Data Miner | Free Lgt. Regenerative Plating | -7/Data Miner | Free Biomechanical Wings | -7/Data Miner | Free Exp. Targeting Computer | -7/Data Miner | Free Scatter Rocket Array | -7/Data Miner | Free Linear Gravjet | -7/Data Miner | Free Adv. Shield Generator | -7/Data Miner | Free Tesla Rifle | -7/Data Miner | Free Lgt. Fission Core | -7/Data Miner | Free Adv. Medium Treads | -7/Data Miner | Free Robot Schematics ------------------ S-27 Virus | -7/Data Miner | Free M-14 Sweeper | -7/Data Miner | Free H-66 Slayer | -7/Data Miner | Free O-24 Administrator | -7/Data Miner | Free B-48 Gladiator | -7/Data Miner | Free Fabricated ------------ Nothing Repaired ---------- Nothing Studied --------- Med. Laser | -9/Materials | Hacked Lgt. Treads | -8/Materials | Hacked Minigun | -8/Materials | Hacked Gauss Rifle | -8/Materials | Hacked Field Laser | -8/Materials | Hacked Missile Launcher | -7/Factory | Hacked Lrn. Proton Cannon | -4/Factory | Hacked Alien Tech Used ----------------- None Achievements -------------- Deep Understanding Great Explorer Challenges ------------ None Game ------ Seed ChromionSalvageMindspike Manual? 0 Play Time 05:57:39 Cumulative 287.6 hours Start 2026.08.19 @ 22:55:14 End 2026.08.20 @ 05:05:37 Sessions 1 Manual Loads 0 Difficulty Rogue Special Mode None Game No. 269 Rogue 215 Adventurer 54 Explorer 0 Win Type - Total 11 Types 7/0/1/1/0/0/0/1/0/1 Lore% 77 Gallery% 66 Achievement% 61 Wizard Run 0 Options --------- Layout 1 ASCII 0 Keyboard 0 Movement Mouse Keybinds 1 Fullscreen 2 Font 32/Tamsyn Map View 50x35 Zoom Use 0% Tactical HUD 1 Map Filters NONE Filters NONE Steam 1 RUN: b81c61f3-7e75-4e58-94f7-930986a771e9